Workbook

Sheet Data summary
A1: RUN # 2 | B1: Rate classes | C1: Weather station used for normalization | H1: Test Year
A2: 1 | B2: Residential | C2: Windsor | H2: 2004
A3: 2 | B3: GS>50kW
A4: 3 | B4: Street Lighting
A5: 4 | B5: GS<50kW
A6: 5 | B6: Sentinel Lightig
A7: 6 | B7: Intermediate
A8: 7 | B8: USL
A11: Monthly kWh by class (with actual weather) | C11: Jan | D11: Feb | E11: Mar | F11: Apr | G11: May | H11: Jun | I11: Jul | J11: Aug | K11: Sep | L11: Oct | M11: Nov | N11: Dec | O11: TOTAL
A12: 1 | B12: Residential | C12: 4785829.269 | D12: 4156443.374 | E12: 4087754.031 | F12: 3446999.893 | G12: 3233613.686 | H12: 3224421.717 | I12: 3570772.239 | J12: 3440283.487 | K12: 3230074.836 | L12: 3523891.763 | M12: 3814204.374 | N12: 4826401.601 | O12: 45340690.27
A13: 2 | B13: GS>50kW | C13: 5537497.198 | D13: 5106765.526 | E13: 5510685.55 | F13: 5031718.036 | G13: 5137735.75 | H13: 5141184.641 | I13: 5211596.929 | J13: 5346718.156 | K13: 5428442.565 | L13: 5270981.404 | M13: 5437089.473 | N13: 5480281.063 | O13: 63640696.29
A14: 3 | B14: Street Lighting | C14: 122410.3191 | D14: 114512.8791 | E14: 123726.5853 | F14: 91605.22381 | G14: 96236.20318 | H14: 93131.80953 | I14: 73223.19807 | J14: 73224.78535 | K14: 71277.8198 | L14: 105219.6387 | M14: 102219.3931 | N14: 105626.7063 | O14: 1172414.561
A15: 4 | B15: GS<50kW | C15: 2130386.193 | D15: 1961009.078 | E15: 1910440.474 | F15: 1639547.599 | G15: 1647946.71 | H15: 1659639.003 | I15: 1801600.863 | J15: 1784468.233 | K15: 1659349.836 | L15: 1725789.59 | M15: 1797113.86 | N15: 2090309.638 | O15: 21807601.08
A16: 5 | B16: Sentinel Lightig | C16: 4197 | D16: 3898 | E16: 4192 | F16: 4743 | G16: 4021 | H16: 3953 | I16: 4333 | J16: 4363 | K16: 3766 | L16: 4479 | M16: 4223 | N16: 8167 | O16: 54335
A17: 6 | B17: Intermediate | C17: 2396943.95 | D17: 2304114.099 | E17: 2459917.572 | F17: 2319566.559 | G17: 1801770.281 | H17: 2220684.552 | I17: 2044905.862 | J17: 1829774.842 | K17: 2003890.375 | L17: 2092548.824 | M17: 1988065.594 | N17: 1611494.845 | O17: 25073677.35
A18: 7 | B18: USL | C18: 43187.96759 | D18: 45292.87353 | E18: 51392.99889 | F18: 41289.86476 | G18: 57444.10166 | H18: 50705.31806 | I18: 37551.99069 | J18: 52611.55352 | K18: 48260.04567 | L18: 43896.31107 | M18: 52279.858 | N18: 61572.99979 | O18: 585485.8832
A21: Monthly kWh by class (with normalized weather) | C21: Jan | D21: Feb | E21: Mar | F21: Apr | G21: May | H21: Jun | I21: Jul | J21: Aug | K21: Sep | L21: Oct | M21: Nov | N21: Dec | O21: TOTAL
A22: 1 | B22: Residential | C22: 4636285.081 | D22: 4200350.888 | E22: 4218817.884 | F22: 3526893.043 | G22: 3253181.221 | H22: 3311063.82 | I22: 3649638.274 | J22: 3552117.14 | K22: 3222516.897 | L22: 3620814.869 | M22: 3952899.858 | N22: 4807263.728 | O22: 45951842.7
A23: 2 | B23: GS>50kW | C23: 5472517.104 | D23: 5125844.264 | E23: 5567635.549 | F23: 5066433.289 | G23: 5149490.539 | H23: 5248464.535 | I23: 5309248.527 | J23: 5485190.122 | K23: 5421594.801 | L23: 5313096.531 | M23: 5497355.576 | N23: 5471965.255 | O23: 64128836.09
A24: 3 | B24: Street Lighting | C24: 122410.3191 | D24: 114512.8791 | E24: 123726.5853 | F24: 91605.22381 | G24: 96236.20318 | H24: 93131.80953 | I24: 73223.19807 | J24: 73224.78535 | K24: 71277.8198 | L24: 105219.6387 | M24: 102219.3931 | N24: 105626.7063 | O24: 1172414.561
A25: 4 | B25: GS<50kW | C25: 2086360.058 | D25: 1973935.546 | E25: 1949025.958 | F25: 1663068.316 | G25: 1654958.987 | H25: 1711942.606 | I25: 1849210.254 | J25: 1851979.326 | K25: 1655753.378 | L25: 1754323.964 | M25: 1837946.112 | N25: 2084675.407 | O25: 22073179.91
A26: 5 | B26: Sentinel Lightig | C26: 4197 | D26: 3898 | E26: 4192 | F26: 4743 | G26: 4021 | H26: 3953 | I26: 4333 | J26: 4363 | K26: 3766 | L26: 4479 | M26: 4223 | N26: 8167 | O26: 54335
A27: 6 | B27: Intermediate | C27: 2396943.95 | D27: 2304114.099 | E27: 2459917.572 | F27: 2319566.559 | G27: 1801770.281 | H27: 2220684.552 | I27: 2044905.862 | J27: 1829774.842 | K27: 2003890.375 | L27: 2092548.824 | M27: 1988065.594 | N27: 1611494.845 | O27: 25073677.35
A28: 7 | B28: USL | C28: 43187.96759 | D28: 45292.87353 | E28: 51392.99889 | F28: 41289.86476 | G28: 57444.10166 | H28: 50705.31806 | I28: 37551.99069 | J28: 52611.55352 | K28: 48260.04567 | L28: 43896.31107 | M28: 52279.858 | N28: 61572.99979 | O28: 585485.8832
A31: Residential class information | C31: Equipment saturation
B32: Electric space heating | C32: 0.101908867
B33: Electric water heating | C33: 0.1791411043
B34: Air conditioning | C34: 0.4274603905
B35: Baseload | C35: 1
A37: General service >50kW | C37: 2004 kWh (Actual) | D37: 2004 kWh (Weather Corrected)
B38: Weather sensitive load | C38: 25094520.32 | D38: 25582660.12
B39: Non-weather sensitive load | C39: 38546175.98 | D39: 38546175.98
B40: TOTAL | C40: 63640696.29 | D40: 64128836.09
A42: Intermediate | C42: 2004 kWh (Actual) | D42: 2004 kWh (Weather Corrected)
B43: Weather sensitive load | C43: 0 | D43: 0
B44: Non-weather sensitive load | C44: 25073677.35 | D44: 25073677.35
B45: TOTAL | C45: 25073677.35 | D45: 25073677.35
C48: 0.3943156153 | D48: 0.3989260008

Sheet Hourly load shapes by class
A1: ALL UNITS IN GWh | N1: 2015 Load Shape
A2: Year | B2: Month | C2: Day | D2: Hour (EST) | E2: Residential | F2: GS>50 2999 | G2: Street Lighting | H2: GS<50kW | I2: Sentinel Lighting | J2: GS 3000 4999 | K2: USL | L2: TOTAL LDC sales | N2: =E2 -> Residential | O2: =F2 -> GS>50 2999 | P2: Street Lighting | Q2: GS<50kW | R2: Sentinel Lighting | S2: GS 3000 4999 | T2: USL | U2: =L2 -> TOTAL LDC sales | X2: =E2 -> Residential | Y2: =F2 -> GS>50 2999 | Z2: Street Lighting | AA2: GS<50kW | AB2: Sentinel Lighting | AC2: GS 3000 4999 | AD2: USL | AE2: =L2 -> TOTAL LDC sales
A3: 2004 | B3: 1 | C3: 1 | D3: 1 | E3: 0.004407599792 | F3: 0.004637021612 | G3: 0.000263247998 | H3: 0.002659634603 | I3: 9.025806452e-06 | J3: 0.001108215616 | K3: 5.804834354e-05 | L3: 0.01314279377 | N3: =E3*X$5 -> 0.004301268459 | O3: =F3*Y$5 -> 0.004321327894 | P3: 0.0001279796802 | Q3: 0.002520675208 | R3: 6.479992006e-06 | S3: 0.0007148238651 | T3: 5.546457146e-05 | U3: =SUM(N3:Q3) -> 0.01127125124 | W3: 2004 | X3: =SUM(E3:E8786)*1000000 -> 45951842.7 | Y3: =SUM(F3:F8786)*1000000 -> 64128836.09 | Z3: 1172414.561 | AA3: 22073179.91 | AB3: 54335 | AC3: 25073677.35 | AD3: 585485.8832 | AE3: =SUM(X3:AD3) -> 159039771.5
A4: 2004 | B4: 1 | C4: 1 | D4: 2 | E4: 0.004086463215 | F4: 0.004528485609 | G4: 0.000263247998 | H4: 0.00247153947 | I4: 9.025806452e-06 | J4: 0.00111173824 | K4: 5.804834354e-05 | L4: 0.01252854868 | N4: =E4*X$5 -> 0.003987879156 | O4: =F4*Y$5 -> 0.004220181146 | P4: =G4*Z$5 -> 0.0001279796802 | Q4: =H4*AA$5 -> 0.002342407585 | R4: =I4*AB$5 -> 6.479992006e-06 | S4: =J4*AC$5 -> 0.0007170960364 | T4: =K4*AD$5 -> 5.546457146e-05 | U4: 0.01067844757 | W4: 2018 Forecast | X4: 44843275.48 | Y4: 59762871.82 | Z4: 569976.7587 | AA4: 20919910.31 | AB4: 39009.29712 | AC4: 16173082.84 | AD4: 559425.5 | AE4: =SUM(X4:AD4) -> 142867552
A5: 2004 | B5: 1 | C5: 1 | D5: 3 | E5: 0.00382276047 | F5: 0.004452397156 | G5: 0.000263247998 | H5: 0.002474326717 | I5: 9.025806452e-06 | J5: 0.001109020736 | K5: 5.804834354e-05 | L5: 0.01218882723 | N5: 0.003730538119 | O5: 0.004149272882 | P5: 0.0001279796802 | Q5: 0.002345049205 | R5: 6.479992006e-06 | S5: 0.0007153431856 | T5: 5.546457146e-05 | U5: 0.01035283989 | W5: Scaling Factor | X5: =X4/X3 -> 0.9758754566 | Y5: =Y4/Y3 -> 0.9319188599 | Z5: 0.4861563286 | AA5: 0.9477524486 | AB5: 0.717940501 | AC5: 0.6450223718 | AD5: 0.9554893056 | AE5: =AE4/AE3 -> 0.898313363
A6: 2004 | B6: 1 | C6: 1 | D6: 4 | E6: 0.003769058148 | F6: 0.004366684639 | G6: 0.000263247998 | H6: 0.002403820771 | I6: 9.025806452e-06 | J6: 0.001120293184 | K6: 5.804834354e-05 | L6: 0.01199017889 | N6: 0.003678131341 | O6: 0.004069395771 | P6: 0.0001279796802 | Q6: 0.002278227022 | R6: 6.479992006e-06 | S6: 0.0007226141667 | T6: 5.546457146e-05 | U6: 0.01015373381
A7: 2004 | B7: 1 | C7: 1 | D7: 5 | E7: 0.003715590795 | F7: 0.004369387403 | G7: 0.000263247998 | H7: 0.002525288896 | I7: 9.025806452e-06 | J7: 0.00111173824 | K7: 5.804834354e-05 | L7: 0.01205232748 | N7: 0.003625953864 | O7: 0.004071914527 | P7: 0.0001279796802 | Q7: 0.002393348734 | R7: 6.479992006e-06 | S7: 0.0007170960364 | T7: 5.546457146e-05 | U7: 0.01021919681
A8: 2004 | B8: 1 | C8: 1 | D8: 6 | E8: 0.004047584789 | F8: 0.004466897846 | G8: 0.000263247998 | H8: 0.00272309929 | I8: 9.025806452e-06 | J8: 0.001097144512 | K8: 5.804834354e-05 | L8: 0.01266504858 | N8: 0.003949938654 | O8: 0.004162786348 | P8: 0.0001279796802 | Q8: 0.002580824019 | R8: 6.479992006e-06 | S8: 0.0007076827554 | T8: 5.546457146e-05 | U8: 0.0108215287
A9: 2004 | B9: 1 | C9: 1 | D9: 7 | E9: 0.004525953264 | F9: 0.004732803642 | G9: 0.000263247998 | H9: 0.002910025486 | I9: 9.025806452e-06 | J9: 0.001100465792 | K9: 5.804834354e-05 | L9: 0.01359957033 | N9: 0.004416766708 | O9: 0.004410588974 | P9: 0.0001279796802 | Q9: 0.00275798378 | R9: 6.479992006e-06 | S9: 0.0007098250553 | T9: 5.546457146e-05 | U9: 0.01171331914
A10: 2004 | B10: 1 | C10: 1 | D10: 8 | E10: 0.005265674785 | F10: 0.005142305252 | G10: 0.0001974359985 | H10: 0.003347455288 | I10: 6.769354839e-06 | J10: 0.0011268352 | K10: 5.804834354e-05 | L10: 0.01514452422 | N10: 0.005138642785 | O10: 0.004792211248 | P10: 9.598476016e-05 | Q10: 0.003172558945 | R10: 4.859994005e-06 | S10: 0.0007268339134 | T10: 5.546457146e-05 | U10: 0.01319939774
A11: 2004 | B11: 1 | C11: 1 | D11: 9 | E11: 0.006194195676 | F11: 0.005293570463 | G11: 0 | H11: 0.003642982756 | I11: 0 | J11: 0.00107822304 | K11: 5.804834354e-05 | L11: 0.01626702028 | N11: 0.006044763533 | O11: 0.00493317815 | P11: 0 | Q11: 0.003452645828 | R11: 0 | S11: 0.0006954779826 | T11: 5.546457146e-05 | U11: 0.01443058751
A12: 2004 | B12: 1 | C12: 1 | D12: 10 | E12: 0.006836375789 | F12: 0.005336372288 | G12: 0 | H12: 0.003622057541 | I12: 0 | J12: 0.001089797376 | K12: 5.804834354e-05 | L12: 0.01694265134 | N12: 0.006671451344 | O12: 0.004973065979 | P12: 0 | Q12: 0.003432813903 | R12: 0 | S12: 0.0007029436883 | T12: 5.546457146e-05 | U12: 0.01507733123
A13: 2004 | B13: 1 | C13: 1 | D13: 11 | E13: 0.006872940236 | F13: 0.00546708436 | G13: 0 | H13: 0.003994827062 | I13: 0 | J13: 0.001099560128 | K13: 5.804834354e-05 | L13: 0.01749246013 | N13: 0.00670713369 | O13: 0.005094879024 | P13: 0 | Q13: 0.00378610713 | R13: 0 | S13: 0.0007092408817 | T13: 5.546457146e-05 | U13: 0.01558811984
A14: 2004 | B14: 1 | C14: 1 | D14: 12 | E14: 0.006990407154 | F14: 0.005547987412 | G14: 0 | H14: 0.00401375717 | I14: 0 | J14: 0.001076713344 | K14: 5.804834354e-05 | L14: 0.01768691342 | N14: 0.006821766773 | O14: 0.005170274103 | P14: 0 | Q14: 0.003804048186 | R14: 0 | S14: 0.0006945041949 | T14: 5.546457146e-05 | U14: 0.01579608906
A15: 2004 | B15: 1 | C15: 1 | D15: 13 | E15: 0.007003870986 | F15: 0.005493434803 | G15: 0 | H15: 0.003782545107 | I15: 0 | J15: 0.001065340352 | K15: 5.804834354e-05 | L15: 0.01740323959 | N15: 0.006834905796 | O15: 0.005119435499 | P15: 0 | Q15: 0.003584916387 | R15: 0 | S15: 0.0006871683607 | T15: 5.546457146e-05 | U15: 0.01553925768
A16: 2004 | B16: 1 | C16: 1 | D16: 14 | E16: 0.006755260543 | F16: 0.005498902741 | G16: 0 | H16: 0.003880563754 | I16: 0 | J16: 0.001096842624 | K16: 5.804834354e-05 | L16: 0.01728961801 | N16: 0.006592292967 | O16: 0.005124531173 | P16: 0 | Q16: 0.0036778138 | R16: 0 | S16: 0.0007074880309 | T16: 5.546457146e-05 | U16: 0.01539463794
A17: 2004 | B17: 1 | C17: 1 | D17: 15 | E17: 0.006608868904 | F17: 0.005495405474 | G17: 0 | H17: 0.003874319811 | I17: 0 | J17: 0.001053564672 | K17: 5.804834354e-05 | L17: 0.0170902072 | N17: 0.006449432959 | O17: 0.005121272004 | P17: 0 | Q17: 0.003671896088 | R17: 0 | S17: 0.0006795727836 | T17: 5.546457146e-05 | U17: 0.01524260105
A18: 2004 | B18: 1 | C18: 1 | D18: 16 | E18: 0.006758449599 | F18: 0.005376886055 | G18: 0 | H18: 0.003392022953 | I18: 0 | J18: 0.001105598912 | K18: 5.804834354e-05 | L18: 0.01669100586 | N18: 0.006595405088 | O18: 0.005010821522 | P18: 0 | Q18: 0.003214798059 | R18: 0 | S18: 0.0007131360325 | T18: 5.546457146e-05 | U18: 0.01482102467
A19: 2004 | B19: 1 | C19: 1 | D19: 17 | E19: 0.007454071706 | F19: 0.005521479077 | G19: 6.58119995e-05 | H19: 0.003716282148 | I19: 2.256451613e-06 | J19: 0.00117132096 | K19: 5.804834354e-05 | L19: 0.01798927068 | N19: 0.007274245629 | O19: 0.005145570486 | P19: 3.199492005e-05 | Q19: 0.003522115505 | R19: 1.619998002e-06 | S19: 0.0007555282238 | T19: 5.546457146e-05 | U19: 0.01597392654
A20: 2004 | B20: 1 | C20: 1 | D20: 18 | E20: 0.008581269984 | F20: 0.00559258951 | G20: 0.000263247998 | H20: 0.003859505124 | I20: 9.025806452e-06 | J20: 0.001210573056 | K20: 5.804834354e-05 | L20: 0.01957425982 | N20: 0.008374250763 | O20: 0.005211839641 | P20: 0.0001279796802 | Q20: 0.003657855432 | R20: 6.479992006e-06 | S20: 0.0007808467039 | T20: 5.546457146e-05 | U20: 0.01737192552
A21: 2004 | B21: 1 | C21: 1 | D21: 19 | E21: 0.008882603383 | F21: 0.005407018933 | G21: 0.000263247998 | H21: 0.003440221683 | I21: 9.025806452e-06 | J21: 0.00123080288 | K21: 5.804834354e-05 | L21: 0.01929096903 | N21: 0.008668314632 | O21: 0.00503890292 | P21: 0.0001279796802 | Q21: 0.003260478524 | R21: 6.479992006e-06 | S21: 0.0007938953929 | T21: 5.546457146e-05 | U21: 0.01709567576
A22: 2004 | B22: 1 | C22: 1 | D22: 20 | E22: 0.008215732618 | F22: 0.00531728972 | G22: 0.000263247998 | H22: 0.003534576905 | I22: 9.025806452e-06 | J22: 0.001354296064 | K22: 5.804834354e-05 | L22: 0.01875221746 | N22: 0.00801753182 | O22: 0.004955282574 | P22: 0.0001279796802 | Q22: 0.003349903917 | R22: 6.479992006e-06 | S22: 0.0008735512594 | T22: 5.546457146e-05 | U22: 0.01645069799
A23: 2004 | B23: 1 | C23: 1 | D23: 21 | E23: 0.007630023352 | F23: 0.005209203883 | G23: 0.000263247998 | H23: 0.003417248191 | I23: 9.025806452e-06 | J23: 0.00171893792 | K23: 5.804834354e-05 | L23: 0.01830573549 | N23: 0.007445952522 | O23: 0.004854555343 | P23: 0.0001279796802 | Q23: 0.00323870534 | R23: 6.479992006e-06 | S23: 0.001108753414 | T23: 5.546457146e-05 | U23: 0.01566719289
A24: 2004 | B24: 1 | C24: 1 | D24: 22 | E24: 0.007203027167 | F24: 0.004999913706 | G24: 0.000263247998 | H24: 0.00281641152 | I24: 9.025806452e-06 | J24: 0.001844242688 | K24: 5.804834354e-05 | L24: 0.01719391723 | N24: 0.007029257425 | O24: 0.00465951388 | P24: 0.0001279796802 | Q24: 0.002669260914 | R24: 6.479992006e-06 | S24: 0.001189577793 | T24: 5.546457146e-05 | U24: 0.0144860119
A25: 2004 | B25: 1 | C25: 1 | D25: 23 | E25: 0.006356941202 | F25: 0.004825309865 | G25: 0.000263247998 | H25: 0.002379089165 | I25: 9.025806452e-06 | J25: 0.001840418176 | K25: 5.804834354e-05 | L25: 0.01573208056 | N25: 0.006203582898 | O25: 0.004496797268 | P25: 0.0001279796802 | Q25: 0.002254787582 | R25: 6.479992006e-06 | S25: 0.001187110897 | T25: 5.546457146e-05 | U25: 0.01308314743
A26: 2004 | B26: 1 | C26: 1 | D26: 24 | E26: 0.004875671403 | F26: 0.004698131225 | G26: 0.000263247998 | H26: 0.002491509208 | I26: 9.025806452e-06 | J26: 0.001872323136 | K26: 5.804834354e-05 | L26: 0.01426795712 | N26: 0.004758048056 | O26: 0.004378277095 | P26: 0.0001279796802 | Q26: 0.002361333952 | R26: 6.479992006e-06 | S26: 0.00120769031 | T26: 5.546457146e-05 | U26: 0.01162563878
A27: 2004 | B27: 1 | C27: 2 | D27: 1 | E27: 0.004016960339 | F27: 0.004538863089 | G27: 0.000263247998 | H27: 0.002094183911 | I27: 9.025806452e-06 | J27: 0.002071099776 | K27: 5.804834354e-05 | L27: 0.01305142926 | N27: 0.003920053005 | O27: 0.004229852115 | P27: 0.0001279796802 | Q27: 0.00198476793 | R27: 6.479992006e-06 | S27: 0.00133590569 | T27: 5.546457146e-05 | U27: 0.01026265273
A28: 2004 | B28: 1 | C28: 2 | D28: 2 | E28: 0.003316536633 | F28: 0.004323158661 | G28: 0.000263247998 | H28: 0.001601203649 | I28: 9.025806452e-06 | J28: 0.002870232192 | K28: 5.804834354e-05 | L28: 0.01244145328 | N28: 0.003236526701 | O28: 0.004028833091 | P28: 0.0001279796802 | Q28: 0.001517544679 | R28: 6.479992006e-06 | S28: 0.001851363976 | T28: 5.546457146e-05 | U28: 0.008910884151
A29: 2004 | B29: 1 | C29: 2 | D29: 3 | E29: 0.003009581265 | F29: 0.004214485911 | G29: 0.000263247998 | H29: 0.001471335694 | I29: 9.025806452e-06 | J29: 0.003078368896 | K29: 5.804834354e-05 | L29: 0.01210409391 | N29: 0.002936976491 | O29: 0.003927558905 | P29: 0.0001279796802 | Q29: 0.001394462006 | R29: 6.479992006e-06 | S29: 0.001985616807 | T29: 5.546457146e-05 | U29: 0.008386977083
A30: 2004 | B30: 1 | C30: 2 | D30: 4 | E30: 0.003000722662 | F30: 0.004129176485 | G30: 0.000263247998 | H30: 0.001464656091 | I30: 9.025806452e-06 | J30: 0.002981949696 | K30: 5.804834354e-05 | L30: 0.01190682708 | N30: 0.002928331598 | O30: 0.003848057442 | P30: 0.0001279796802 | Q30: 0.001388131396 | R30: 6.479992006e-06 | S30: 0.001923424266 | T30: 5.546457146e-05 | U30: 0.008292500117
A31: 2004 | B31: 1 | C31: 2 | D31: 5 | E31: 0.00296165542 | F31: 0.004198498907 | G31: 0.000263247998 | H31: 0.001643463625 | I31: 9.025806452e-06 | J31: 0.002834603264 | K31: 5.804834354e-05 | L31: 0.01196854336 | N31: 0.002890206836 | O31: 0.003912660315 | P31: 0.0001279796802 | Q31: 0.001557596675 | R31: 6.479992006e-06 | S31: 0.001828382521 | T31: 5.546457146e-05 | U31: 0.008488443505
A32: 2004 | B32: 1 | C32: 2 | D32: 6 | E32: 0.003123905275 | F32: 0.004376460932 | G32: 0.000263247998 | H32: 0.001543246688 | I32: 9.025806452e-06 | J32: 0.003203069888 | K32: 5.804834354e-05 | L32: 0.01257700493 | N32: 0.003048542486 | O32: 0.004078506482 | P32: 0.0001279796802 | Q32: 0.001462615827 | R32: 6.479992006e-06 | S32: 0.002066051736 | T32: 5.546457146e-05 | U32: 0.008717644476
A33: 2004 | B33: 1 | C33: 2 | D33: 7 | E33: 0.003671068222 | F33: 0.00486001673 | G33: 0.000263247998 | H33: 0.001527210463 | I33: 9.025806452e-06 | J33: 0.003116413184 | K33: 5.804834354e-05 | L33: 0.01350503075 | N33: 0.003582505377 | O33: 0.00452914125 | P33: 0.0001279796802 | Q33: 0.001447417456 | R33: 6.479992006e-06 | S33: 0.002010156224 | T33: 5.546457146e-05 | U33: 0.009687043764
A34: 2004 | B34: 1 | C34: 2 | D34: 8 | E34: 0.004102093275 | F34: 0.00592009725 | G34: 0.0001974359985 | H34: 0.001507647522 | I34: 6.769354839e-06 | J34: 0.00324715296 | K34: 5.804834354e-05 | L34: 0.0150392447 | N34: 0.004003132148 | O34: 0.00551705028 | P34: 9.598476016e-05 | Q34: 0.001428876631 | R34: 4.859994005e-06 | S34: 0.002094486304 | T34: 5.546457146e-05 | U34: 0.01104504382
A35: 2004 | B35: 1 | C35: 2 | D35: 9 | E35: 0.00472746483 | F35: 0.006588688771 | G35: 0 | H35: 0.00153982798 | I35: 0 | J35: 0.003239906368 | K35: 5.804834354e-05 | L35: 0.01615393629 | N35: 0.0046134169 | O35: 0.006140123328 | P35: 0 | Q35: 0.001459375739 | R35: 0 | S35: 0.00208981209 | T35: 5.546457146e-05 | U35: 0.01221291597
A36: 2004 | B36: 1 | C36: 2 | D36: 10 | E36: 0.005133614408 | F36: 0.006738414406 | G36: 0 | H36: 0.001677834444 | I36: 0 | J36: 0.00321695904 | K36: 5.804834354e-05 | L36: 0.01682487064 | N36: 0.005009768305 | O36: 0.006279655471 | P36: 0 | Q36: 0.001590171703 | R36: 0 | S36: 0.00207501055 | T36: 5.546457146e-05 | U36: 0.01287959548
A37: 2004 | B37: 1 | C37: 2 | D37: 11 | E37: 0.005360559866 | F37: 0.006915655774 | G37: 0 | H37: 0.001820641453 | I37: 0 | J37: 0.003215952576 | K37: 5.804834354e-05 | L37: 0.01737085801 | N37: 0.005231238806 | O37: 0.006444830045 | P37: 0 | Q37: 0.001725517395 | R37: 0 | S37: 0.002074361358 | T37: 5.546457146e-05 | U37: 0.01340158625
A38: 2004 | B38: 1 | C38: 2 | D38: 12 | E38: 0.005533135865 | F38: 0.006821518138 | G38: 0 | H38: 0.001819259602 | I38: 0 | J38: 0.003331997824 | K38: 5.804834354e-05 | L38: 0.01756395977 | N38: 0.005399651488 | O38: 0.006357101406 | P38: 0 | Q38: 0.001724207742 | R38: 0 | S38: 0.002149213139 | T38: 5.546457146e-05 | U38: 0.01348096064
A39: 2004 | B39: 1 | C39: 2 | D39: 13 | E39: 0.005476244242 | F39: 0.006829412762 | G39: 0 | H39: 0.002027486375 | I39: 0 | J39: 0.002891066048 | K39: 5.804834354e-05 | L39: 0.01728225777 | N39: 0.00534413235 | O39: 0.006364458555 | P39: 0 | Q39: 0.001921555177 | R39: 0 | S39: 0.001864802279 | T39: 5.546457146e-05 | U39: 0.01363014608
A40: 2004 | B40: 1 | C40: 2 | D40: 14 | E40: 0.005374835372 | F40: 0.006827479412 | G40: 0 | H40: 0.001600011545 | I40: 0 | J40: 0.003309050496 | K40: 5.804834354e-05 | L40: 0.01716942517 | N40: 0.005245169922 | O40: 0.00636265683 | P40: 0 | Q40: 0.001516414859 | R40: 0 | S40: 0.002134411599 | T40: 5.546457146e-05 | U40: 0.01312424161
A41: 2004 | B41: 1 | C41: 2 | D41: 15 | E41: 0.005131623227 | F41: 0.006790128885 | G41: 0 | H41: 0.001686878471 | I41: 0 | J41: 0.003304722752 | K41: 5.804834354e-05 | L41: 0.01697140168 | N41: 0.00500782516 | O41: 0.00632784917 | P41: 0 | Q41: 0.001598743201 | R41: 0 | S41: 0.002131620108 | T41: 5.546457146e-05 | U41: 0.01293441753
A42: 2004 | B42: 1 | C42: 2 | D42: 16 | E42: 0.005313887498 | F42: 0.006546496899 | G42: 0 | H42: 0.001751284502 | I42: 0 | J42: 0.002905257088 | K42: 5.804834354e-05 | L42: 0.01657497433 | N42: 0.005185692388 | O42: 0.006100803927 | P42: 0 | Q42: 0.001659784175 | R42: 0 | S42: 0.001873955818 | T42: 5.546457146e-05 | U42: 0.01294628049
A43: 2004 | B43: 1 | C43: 2 | D43: 17 | E43: 0.006350656976 | F43: 0.006574581593 | G43: 6.58119995e-05 | H43: 0.002198570836 | I43: 2.256451613e-06 | J43: 0.002614288448 | K43: 5.804834354e-05 | L43: 0.01786421465 | N43: 0.006197450276 | O43: 0.006126976583 | P43: 3.199492005e-05 | Q43: 0.002083700893 | R43: 1.619998002e-06 | S43: 0.001686274535 | T43: 5.546457146e-05 | U43: 0.01444012267
A44: 2004 | B44: 1 | C44: 2 | D44: 18 | E44: 0.00725900486 | F44: 0.006488208779 | G44: 0.000263247998 | H44: 0.002287010602 | I44: 9.025806452e-06 | J44: 0.003073638464 | K44: 5.804834354e-05 | L44: 0.01943818485 | N44: 0.007083884682 | O44: 0.006046484128 | P44: 0.0001279796802 | Q44: 0.002167519898 | R44: 6.479992006e-06 | S44: 0.001982565572 | T44: 5.546457146e-05 | U44: 0.01542586839
A45: 2004 | B45: 1 | C45: 2 | D45: 19 | E45: 0.007680987822 | F45: 0.006144405199 | G45: 0.000263247998 | H45: 0.001852830222 | I45: 9.025806452e-06 | J45: 0.003148318144 | K45: 5.804834354e-05 | L45: 0.01915686354 | N45: 0.007495687497 | O45: 0.005726087088 | P45: 0.0001279796802 | Q45: 0.00175602438 | R45: 6.479992006e-06 | S45: 0.002030735637 | T45: 5.546457146e-05 | U45: 0.01510577865
A46: 2004 | B46: 1 | C46: 2 | D46: 20 | E46: 0.007301794386 | F46: 0.006098968633 | G46: 0.000263247998 | H46: 0.002021243868 | I46: 9.025806452e-06 | J46: 0.002869527616 | K46: 5.804834354e-05 | L46: 0.01862185665 | N46: 0.007125641931 | O46: 0.005683743895 | P46: 0.0001279796802 | Q46: 0.001915638825 | R46: 6.479992006e-06 | S46: 0.001850909509 | T46: 5.546457146e-05 | U46: 0.01485300433
A47: 2004 | B47: 1 | C47: 2 | D47: 21 | E47: 0.006703516665 | F47: 0.005990368436 | G47: 0.000263247998 | H47: 0.002221840289 | I47: 9.025806452e-06 | J47: 0.002932431616 | K47: 5.804834354e-05 | L47: 0.01817847915 | N47: 0.006541797386 | O47: 0.005582537323 | P47: 0.0001279796802 | Q47: 0.002105754575 | R47: 6.479992006e-06 | S47: 0.001891483996 | T47: 5.546457146e-05 | U47: 0.01435806896
A48: 2004 | B48: 1 | C48: 2 | D48: 22 | E48: 0.006341262312 | F48: 0.005601274148 | G48: 0.000263247998 | H48: 0.001713097737 | I48: 9.025806452e-06 | J48: 0.003088433536 | K48: 5.804834354e-05 | L48: 0.01707438988 | N48: 0.006188282253 | O48: 0.005219933018 | P48: 0.0001279796802 | Q48: 0.001623592574 | R48: 6.479992006e-06 | S48: 0.001992108725 | T48: 5.546457146e-05 | U48: 0.01315978753
A49: 2004 | B49: 1 | C49: 2 | D49: 23 | E49: 0.005685770096 | F49: 0.005128974279 | G49: 0.000263247998 | H49: 0.001521566111 | I49: 9.025806452e-06 | J49: 0.00295608352 | K49: 5.804834354e-05 | L49: 0.01562271615 | N49: 0.005548603488 | O49: 0.004779787862 | P49: 0.0001279796802 | Q49: 0.001442068007 | R49: 6.479992006e-06 | S49: 0.001906740003 | T49: 5.546457146e-05 | U49: 0.01189843904
A50: 2004 | B50: 1 | C50: 2 | D50: 24 | E50: 0.005214092263 | F50: 0.004528300091 | G50: 0.000263247998 | H50: 0.001400144274 | I50: 9.025806452e-06 | J50: 0.002695912576 | K50: 5.804834354e-05 | L50: 0.01416877135 | N50: 0.005088304668 | O50: 0.004220008259 | P50: 0.0001279796802 | Q50: 0.001326990164 | R50: 6.479992006e-06 | S50: 0.001738923924 | T50: 5.546457146e-05 | U50: 0.01076328277
A51: 2004 | B51: 1 | C51: 3 | D51: 1 | E51: 0.003971139436 | F51: 0.004488702158 | G51: 0.000263247998 | H51: 0.002060951206 | I51: 9.025806452e-06 | J51: 0.002578357632 | K51: 5.804834354e-05 | L51: 0.01342947258 | N51: 0.00387533751 | O51: 0.004183106198 | P51: 0.0001279796802 | Q51: 0.001953271552 | R51: 6.479992006e-06 | S51: 0.001663098355 | T51: 5.546457146e-05 | U51: 0.01013969494
A52: 2004 | B52: 1 | C52: 3 | D52: 2 | E52: 0.003822071859 | F52: 0.004406572785 | G52: 0.000263247998 | H52: 0.002172462325 | I52: 9.025806452e-06 | J52: 0.002517667904 | K52: 5.804834354e-05 | L52: 0.01324909702 | N52: 0.00372986612 | O52: 0.004106568286 | P52: 0.0001279796802 | Q52: 0.002058956488 | R52: 6.479992006e-06 | S52: 0.001623952123 | T52: 5.546457146e-05 | U52: 0.01002337057
A53: 2004 | B53: 1 | C53: 3 | D53: 3 | E53: 0.00344443471 | F53: 0.00423638507 | G53: 0.000263247998 | H53: 0.001934840659 | I53: 9.025806452e-06 | J53: 0.002761232192 | K53: 5.804834354e-05 | L53: 0.01270721478 | N53: 0.003361339295 | O53: 0.003947967144 | P53: 0.0001279796802 | Q53: 0.001833749972 | R53: 6.479992006e-06 | S53: 0.001781056538 | T53: 5.546457146e-05 | U53: 0.009271036092
A54: 2004 | B54: 1 | C54: 3 | D54: 4 | E54: 0.003388995336 | F54: 0.004284960554 | G54: 0.000263247998 | H54: 0.002076463945 | I54: 9.025806452e-06 | J54: 0.0024646272 | K54: 5.804834354e-05 | L54: 0.01254536918 | N54: 0.003307237371 | O54: 0.003993235554 | P54: 0.0001279796802 | Q54: 0.001967973788 | R54: 6.479992006e-06 | S54: 0.001589739682 | T54: 5.546457146e-05 | U54: 0.009396426393
A55: 2004 | B55: 1 | C55: 3 | D55: 5 | E55: 0.003411702509 | F55: 0.0043242169 | G55: 0.000263247998 | H55: 0.002076558895 | I55: 9.025806452e-06 | J55: 0.002224082304 | K55: 5.804834354e-05 | L55: 0.01236688276 | N55: 0.003329396744 | O55: 0.004029819284 | P55: 0.0001279796802 | Q55: 0.001968063778 | R55: 6.479992006e-06 | S55: 0.001434582843 | T55: 5.546457146e-05 | U55: 0.009455259486
A56: 2004 | B56: 1 | C56: 3 | D56: 6 | E56: 0.003638130181 | F56: 0.004447588337 | G56: 0.000263247998 | H56: 0.002198151082 | I56: 9.025806452e-06 | J56: 0.002379279104 | K56: 5.804834354e-05 | L56: 0.01299347085 | N56: 0.003550361951 | O56: 0.004144791452 | P56: 0.0001279796802 | Q56: 0.00208330307 | R56: 6.479992006e-06 | S56: 0.001534688251 | T56: 5.546457146e-05 | U56: 0.009906436154
A57: 2004 | B57: 1 | C57: 3 | D57: 7 | E57: 0.00403521497 | F57: 0.004959716066 | G57: 0.000263247998 | H57: 0.002490598392 | I57: 9.025806452e-06 | J57: 0.002201638208 | K57: 5.804834354e-05 | L57: 0.01401748978 | N57: 0.003937867251 | O57: 0.004622052942 | P57: 0.0001279796802 | Q57: 0.002360470724 | R57: 6.479992006e-06 | S57: 0.001420105899 | T57: 5.546457146e-05 | U57: 0.0110483706
A58: 2004 | B58: 1 | C58: 3 | D58: 8 | E58: 0.004720537606 | F58: 0.005515781936 | G58: 0.0001974359985 | H58: 0.002403438696 | I58: 6.769354839e-06 | J58: 0.002227604928 | K58: 5.804834354e-05 | L58: 0.01512961686 | N58: 0.004606656792 | O58: 0.005140261213 | P58: 9.598476016e-05 | Q58: 0.002277864909 | R58: 4.859994005e-06 | S58: 0.001436855014 | T58: 5.546457146e-05 | U58: 0.01212076767
A59: 2004 | B59: 1 | C59: 3 | D59: 9 | E59: 0.005192006673 | F59: 0.005876790192 | G59: 0 | H59: 0.002552528482 | I59: 0 | J59: 0.00227762624 | K59: 5.804834354e-05 | L59: 0.01595699993 | N59: 0.005066751883 | O59: 0.005476691615 | P59: 0 | Q59: 0.002419165119 | R59: 0 | S59: 0.001469119879 | T59: 5.546457146e-05 | U59: 0.01296260862
A60: 2004 | B60: 1 | C60: 3 | D60: 10 | E60: 0.005743779105 | F60: 0.006012691618 | G60: 0 | H60: 0.002887469555 | I60: 0 | J60: 0.002506294912 | K60: 5.804834354e-05 | L60: 0.01720828353 | N60: 0.005605213056 | O60: 0.005603340718 | P60: 0 | Q60: 0.002736606341 | R60: 0 | S60: 0.001616616289 | T60: 5.546457146e-05 | U60: 0.01394516011
A61: 2004 | B61: 1 | C61: 3 | D61: 11 | E61: 0.005945211782 | F61: 0.006007781254 | G61: 0 | H61: 0.002943359322 | I61: 0 | J61: 0.002472075136 | K61: 5.804834354e-05 | L61: 0.01742647584 | N61: 0.005801786262 | O61: 0.005598764657 | P61: 0 | Q61: 0.002789576005 | R61: 0 | S61: 0.001594543768 | T61: 5.546457146e-05 | U61: 0.01419012692
A62: 2004 | B62: 1 | C62: 3 | D62: 12 | E62: 0.006159125493 | F62: 0.005901848392 | G62: 0 | H62: 0.002714798008 | I62: 0 | J62: 0.00282786016 | K62: 5.804834354e-05 | L62: 0.0176616804 | N62: 0.006010539402 | O62: 0.005500043825 | P62: 0 | Q62: 0.002572956459 | R62: 0 | S62: 0.001824033068 | T62: 5.546457146e-05 | U62: 0.01408353969
A63: 2004 | B63: 1 | C63: 3 | D63: 13 | E63: 0.006338584283 | F63: 0.005701984545 | G63: 0 | H63: 0.00252979543 | I63: 0 | J63: 0.002458487872 | K63: 5.804834354e-05 | L63: 0.01708690047 | N63: 0.006185668831 | O63: 0.005313786937 | P63: 0 | Q63: 0.002397619813 | R63: 0 | S63: 0.001585779678 | T63: 5.546457146e-05 | U63: 0.01389707558
A64: 2004 | B64: 1 | C64: 3 | D64: 14 | E64: 0.005875513983 | F64: 0.005575564023 | G64: 0 | H64: 0.002554743234 | I64: 0 | J64: 0.002869125184 | K64: 5.804834354e-05 | L64: 0.01693299477 | N64: 0.00573376989 | O64: 0.005195973267 | P64: 0 | Q64: 0.002421264155 | R64: 0 | S64: 0.001850649931 | T64: 5.546457146e-05 | U64: 0.01335100731
A65: 2004 | B65: 1 | C65: 3 | D65: 15 | E65: 0.005747854943 | F65: 0.00554328054 | G65: 0 | H65: 0.002798598724 | I65: 0 | J65: 0.002614288448 | K65: 5.804834354e-05 | L65: 0.016762071 | N65: 0.005609190567 | O65: 0.005165887681 | P65: 0 | Q65: 0.002652378794 | R65: 0 | S65: 0.001686274535 | T65: 5.546457146e-05 | U65: 0.01342745704
A66: 2004 | B66: 1 | C66: 3 | D66: 16 | E66: 0.005816883298 | F66: 0.005262274866 | G66: 0 | H66: 0.002661676772 | I66: 0 | J66: 0.002786595136 | K66: 5.804834354e-05 | L66: 0.01658547842 | N66: 0.005676553644 | O66: 0.004904013194 | P66: 0 | Q66: 0.002522610678 | R66: 0 | S66: 0.001797416204 | T66: 5.546457146e-05 | U66: 0.01310317752
A67: 2004 | B67: 1 | C67: 3 | D67: 17 | E67: 0.006516460229 | F67: 0.005245842511 | G67: 6.58119995e-05 | H67: 0.002518570817 | I67: 2.256451613e-06 | J67: 0.002614489792 | K67: 5.804834354e-05 | L67: 0.01702148014 | N67: 0.006359253602 | O67: 0.004888699573 | P67: 3.199492005e-05 | Q67: 0.002386981659 | R67: 1.619998002e-06 | S67: 0.001686404407 | T67: 5.546457146e-05 | U67: =SUM(N67:Q67) -> 0.01366692975
A68: 2004 | B68: 1 | C68: 3 | D68: 18 | E68: 0.007549539491 | F68: 0.005386218873 | G68: 0.000263247998 | H68: 0.002805985665 | I68: 9.025806452e-06 | J68: 0.00271875936 | K68: 5.804834354e-05 | L68: 0.01879082554 | N68: =E68*X$5 -> 0.007367410297 | O68: =F68*Y$5 -> 0.005019518951 | P68: =G68*Z$5 -> 0.0001279796802 | Q68: =H68*AA$5 -> 0.002659379785 | R68: =I68*AB$5 -> 6.479992006e-06 | S68: =J68*AC$5 -> 0.001753660611 | T68: =K68*AD$5 -> 5.546457146e-05 | U68: 0.01517428871
A69: 2004 | B69: 1 | C69: 3 | D69: 19 | E69: 0.007801839574 | F69: 0.005295162247 | G69: 0.000263247998 | H69: 0.002590813821 | I69: 9.025806452e-06 | J69: 0.002426683456 | K69: 5.804834354e-05 | L69: 0.01844482125 | N69: 0.007613623757 | O69: 0.004934661564 | P69: 0.0001279796802 | Q69: 0.002455450143 | R69: 6.479992006e-06 | S69: 0.001565265119 | T69: 5.546457146e-05 | U69: 0.01513171514
A70: 2004 | B70: 1 | C70: 3 | D70: 20 | E70: 0.007501527504 | F70: 0.005077418934 | G70: 0.000263247998 | H70: 0.002397610204 | I70: 9.025806452e-06 | J70: 0.002614590336 | K70: 5.804834354e-05 | L70: 0.01792146913 | N70: 0.007320556578 | O70: 0.004731742464 | P70: 0.0001279796802 | Q70: 0.002272340942 | R70: 6.479992006e-06 | S70: 0.00168646926 | T70: 5.546457146e-05 | U70: 0.01445261966
A71: 2004 | B71: 1 | C71: 3 | D71: 21 | E71: 0.006812934468 | F71: 0.00490510953 | G71: 0.000263247998 | H71: 0.00234606406 | I71: 9.025806452e-06 | J71: 0.002953768704 | K71: 5.804834354e-05 | L71: 0.01734819891 | N71: 0.006648575535 | O71: 0.004571164081 | P71: 0.0001279796802 | Q71: 0.002223487958 | R71: 6.479992006e-06 | S71: 0.001905246895 | T71: 5.546457146e-05 | U71: 0.01357120725
A72: 2004 | B72: 1 | C72: 3 | D72: 22 | E72: 0.006425306364 | F72: 0.004691920097 | G72: 0.000263247998 | H72: 0.002415194521 | I72: 9.025806452e-06 | J72: 0.002511729664 | K72: 5.804834354e-05 | L72: 0.01637447279 | N72: 0.006270298782 | O72: 0.004372488828 | P72: 0.0001279796802 | Q72: 0.002289006521 | R72: 6.479992006e-06 | S72: 0.001620121825 | T72: 5.546457146e-05 | U72: 0.01305977381
A73: 2004 | B73: 1 | C73: 3 | D73: 23 | E73: 0.005993256274 | F73: 0.004513625224 | G73: 0.000263247998 | H73: 0.00229017633 | I73: 9.025806452e-06 | J73: 0.002487775872 | K73: 5.804834354e-05 | L73: 0.01561515585 | N73: 0.005848671702 | O73: 0.004206332473 | P73: 0.0001279796802 | Q73: 0.002170520224 | R73: 6.479992006e-06 | S73: 0.001604671094 | T73: 5.546457146e-05 | U73: 0.01235350408
A74: 2004 | B74: 1 | C74: 3 | D74: 24 | E74: 0.005043738879 | F74: 0.004391358286 | G74: 0.000263247998 | H74: 0.002334453169 | I74: 9.025806452e-06 | J74: 0.002468954944 | K74: 5.804834354e-05 | L74: 0.01456882743 | N74: 0.004922060981 | O74: 0.004092389608 | P74: 0.0001279796802 | Q74: 0.002212483707 | R74: 6.479992006e-06 | S74: 0.001592531174 | T74: 5.546457146e-05 | U74: 0.01135491398
A75: 2004 | B75: 1 | C75: 4 | D75: 1 | E75: 0.004336156001 | F75: 0.00452675305 | G75: 0.000263247998 | H75: 0.002448161599 | I75: 9.025806452e-06 | J75: 0.002291716736 | K75: 5.804834354e-05 | L75: 0.01393310953 | N75: 0.004231548218 | O75: 0.004218566542 | P75: 0.0001279796802 | Q75: 0.00232025115 | R75: 6.479992006e-06 | S75: 0.001478208565 | T75: 5.546457146e-05 | U75: 0.01089834559
A76: 2004 | B76: 1 | C76: 4 | D76: 2 | E76: 0.003907022052 | F76: 0.004419704347 | G76: 0.000263247998 | H76: 0.002228962768 | I76: 9.025806452e-06 | J76: 0.002857651392 | K76: 5.804834354e-05 | L76: 0.01374366271 | N76: 0.003812766929 | O76: 0.004118805837 | P76: 0.0001279796802 | Q76: 0.002112504921 | R76: 6.479992006e-06 | S76: 0.001843249079 | T76: 5.546457146e-05 | U76: 0.01017205737
A77: 2004 | B77: 1 | C77: 4 | D77: 3 | E77: 0.00367155119 | F77: 0.004335951497 | G77: 0.000263247998 | H77: 0.002169932025 | I77: 9.025806452e-06 | J77: 0.002888851776 | K77: 5.804834354e-05 | L77: 0.01339660864 | N77: 0.003582976694 | O77: 0.004040754976 | P77: 0.0001279796802 | Q77: 0.00205655839 | R77: 6.479992006e-06 | S77: 0.001863374024 | T77: 5.546457146e-05 | U77: 0.00980826974
A78: 2004 | B78: 1 | C78: 4 | D78: 4 | E78: 0.003618436274 | F78: 0.004278177271 | G78: 0.000263247998 | H78: 0.002138620855 | I78: 9.025806452e-06 | J78: 0.002905659776 | K78: 5.804834354e-05 | L78: 0.01327121632 | N78: 0.003531143151 | O78: 0.003986914085 | P78: 0.0001279796802 | Q78: 0.002026883152 | R78: 6.479992006e-06 | S78: 0.00187421556 | T78: 5.546457146e-05 | U78: 0.009672920068
A79: 2004 | B79: 1 | C79: 4 | D79: 5 | E79: 0.003574119284 | F79: 0.004322301122 | G79: 0.000263247998 | H79: 0.002272719258 | I79: 9.025806452e-06 | J79: 0.002498846976 | K79: 5.804834354e-05 | L79: 0.01299830879 | N79: 0.003487895288 | O79: 0.004028033933 | P79: 0.0001279796802 | Q79: 0.002153975242 | R79: 6.479992006e-06 | S79: 0.001611812203 | T79: 5.546457146e-05 | U79: 0.009797884143
A80: 2004 | B80: 1 | C80: 4 | D80: 6 | E80: 0.003783374791 | F80: 0.004357872594 | G80: 0.000263247998 | H80: 0.002211209599 | I80: 9.025806452e-06 | J80: 0.002844265472 | K80: 5.804834354e-05 | L80: 0.0135270446 | N80: 0.003692102601 | O80: 0.004061183659 | P80: 0.0001279796802 | Q80: 0.002095679312 | R80: 6.479992006e-06 | S80: 0.001834614861 | T80: 5.546457146e-05 | U80: 0.009976945252
A81: 2004 | B81: 1 | C81: 4 | D81: 7 | E81: 0.004191368177 | F81: 0.004624699091 | G81: 0.000263247998 | H81: 0.002266074898 | I81: 9.025806452e-06 | J81: 0.0028211168 | K81: 5.804834354e-05 | L81: 0.01423358111 | N81: 0.004090253334 | O81: 0.004309844305 | P81: 0.0001279796802 | Q81: 0.002147678033 | R81: 6.479992006e-06 | S81: 0.00181968345 | T81: 5.546457146e-05 | U81: 0.01067575535
A82: 2004 | B82: 1 | C82: 4 | D82: 8 | E82: 0.004595895085 | F82: 0.005107519577 | G82: 0.0001974359985 | H82: 0.002214208877 | I82: 6.769354839e-06 | J82: 0.002684539584 | K82: 5.804834354e-05 | L82: 0.01486441682 | N82: 0.004485021214 | O82: 0.004759793821 | P82: 9.598476016e-05 | Q82: 0.002098521884 | R82: 4.859994005e-06 | S82: 0.00173158809 | T82: 5.546457146e-05 | U82: 0.01143932168
A83: 2004 | B83: 1 | C83: 4 | D83: 9 | E83: 0.005546759746 | F83: 0.005394714685 | G83: 0 | H83: 0.002387258488 | I83: 0 | J83: 0.002443491456 | K83: 5.804834354e-05 | L83: 0.01583027272 | N83: 0.0054129467 | O83: 0.005027436359 | P83: 0 | Q83: 0.002262530078 | R83: 0 | S83: 0.001576106655 | T83: 5.546457146e-05 | U83: 0.01270291314
A84: 2004 | B84: 1 | C84: 4 | D84: 10 | E84: 0.006049951569 | F84: 0.005433743968 | G84: 0 | H84: 0.002268799322 | I84: 0 | J84: 0.00286640768 | K84: 5.804834354e-05 | L84: 0.01667695088 | N84: 0.00590399925 | O84: 0.005063808484 | P84: 0 | Q84: 0.002150260112 | R84: 0 | S84: 0.00184889708 | T84: 5.546457146e-05 | U84: 0.01311806785
A85: 2004 | B85: 1 | C85: 4 | D85: 11 | E85: 0.006028359097 | F85: 0.005609146771 | G85: 0 | H85: 0.002576479374 | I85: 0 | J85: 0.002931324608 | K85: 5.804834354e-05 | L85: 0.01720335819 | N85: 0.005882927686 | O85: 0.005227269664 | P85: 0 | Q85: 0.002441864635 | R85: 0 | S85: 0.001890769951 | T85: 5.546457146e-05 | U85: 0.01355206199
A86: 2004 | B86: 1 | C86: 4 | D86: 12 | E86: 0.006156227257 | F86: 0.005633344354 | G86: 0 | H86: 0.002598717982 | I86: 0 | J86: 0.002944911872 | K86: 5.804834354e-05 | L86: 0.01739124981 | N86: 0.006007711085 | O86: 0.005249819848 | P86: 0 | Q86: 0.00246294133 | R86: 0 | S86: 0.001899534041 | T86: 5.546457146e-05 | U86: 0.01372047226
A87: 2004 | B87: 1 | C87: 4 | D87: 13 | E87: 0.006157542262 | F87: 0.005640448074 | G87: 0 | H87: 0.002562809808 | I87: 0 | J87: 0.002548868288 | K87: 5.804834354e-05 | L87: 0.01696771678 | N87: 0.006008994366 | O87: 0.005256439939 | P87: 0 | Q87: 0.002428909271 | R87: 0 | S87: 0.001644077069 | T87: 5.546457146e-05 | U87: 0.01369434358
A88: 2004 | B88: 1 | C88: 4 | D88: 14 | E88: 0.005969398485 | F88: 0.005695008316 | G88: 0 | H88: 0.002633805087 | I88: 0 | J88: 0.00290998752 | K88: 5.804834354e-05 | L88: 0.01726624775 | N88: 0.005825389472 | O88: 0.005307285657 | P88: 0 | Q88: 0.00249619522 | R88: 0 | S88: 0.001877007052 | T88: 5.546457146e-05 | U88: 0.01362887035
A89: 2004 | B89: 1 | C89: 4 | D89: 15 | E89: 0.005923513955 | F89: 0.005690881145 | G89: 0 | H89: 0.002497334391 | I89: 0 | J89: 0.002715639424 | K89: 5.804834354e-05 | L89: 0.01688541726 | N89: 0.005780611885 | O89: 0.005303439469 | P89: 0 | Q89: 0.002366854784 | R89: 0 | S89: 0.001751648182 | T89: 5.546457146e-05 | U89: 0.01345090614
A90: 2004 | B90: 1 | C90: 4 | D90: 16 | E90: 0.00624000216 | F90: 0.00538635138 | G90: 0 | H90: 0.002306210663 | I90: 0 | J90: 0.003090849152 | K90: 5.804834354e-05 | L90: 0.0170814617 | N90: 0.006089464957 | O90: 0.005019642437 | P90: 0 | Q90: 0.002185716803 | R90: 0 | S90: 0.001993666851 | T90: 5.546457146e-05 | U90: 0.0132948242
A91: 2004 | B91: 1 | C91: 4 | D91: 17 | E91: 0.006789183807 | F91: 0.005495335798 | G91: 6.58119995e-05 | H91: 0.002563491781 | I91: 2.256451613e-06 | J91: 0.00258288672 | K91: 5.804834354e-05 | L91: 0.0175570149 | N91: 0.006625397847 | O91: 0.005121207071 | P91: 3.199492005e-05 | Q91: 0.002429555612 | R91: 1.619998002e-06 | S91: 0.001666019718 | T91: 5.546457146e-05 | U91: 0.01420815545
A92: 2004 | B92: 1 | C92: 4 | D92: 18 | E92: 0.008029054805 | F92: 0.005503400231 | G92: 0.000263247998 | H92: 0.002416080533 | I92: 9.025806452e-06 | J92: 0.002966852736 | K92: 5.804834354e-05 | L92: 0.01924571045 | N92: 0.007835357523 | O92: 0.005128722469 | P92: 0.0001279796802 | Q92: 0.002289846241 | R92: 6.479992006e-06 | S92: 0.001913686389 | T92: 5.546457146e-05 | U92: 0.01538190591
A93: 2004 | B93: 1 | C93: 4 | D93: 19 | E93: 0.008425337185 | F93: 0.005454096725 | G93: 0.000263247998 | H93: 0.002449486725 | I93: 9.025806452e-06 | J93: 0.002927701184 | K93: 5.804834354e-05 | L93: 0.01958694397 | N93: 0.008222079772 | O93: 0.005082775602 | P93: 0.0001279796802 | Q93: 0.002321507041 | R93: 6.479992006e-06 | S93: 0.001888432762 | T93: 5.546457146e-05 | U93: 0.0157543421
A94: 2004 | B94: 1 | C94: 4 | D94: 20 | E94: 0.007836373838 | F94: 0.005381712202 | G94: 0.000263247998 | H94: 0.002699093528 | I94: 9.025806452e-06 | J94: 0.00248888288 | K94: 5.804834354e-05 | L94: 0.0187363846 | N94: 0.007647324897 | O94: 0.0050153191 | P94: 0.0001279796802 | Q94: 0.0025580725 | R94: 6.479992006e-06 | S94: 0.001605385139 | T94: 5.546457146e-05 | U94: 0.01534869618
A95: 2004 | B95: 1 | C95: 4 | D95: 21 | E95: 0.007391520517 | F95: 0.005271662401 | G95: 0.000263247998 | H95: 0.002618990991 | I95: 9.025806452e-06 | J95: 0.002744222848 | K95: 5.804834354e-05 | L95: 0.0183567189 | N95: 0.00721320346 | O95: 0.004912761615 | P95: 0.0001279796802 | Q95: 0.002482155124 | R95: 6.479992006e-06 | S95: 0.00177008513 | T95: 5.546457146e-05 | U95: 0.01473609988
A96: 2004 | B96: 1 | C96: 4 | D96: 22 | E96: 0.007107774193 | F96: 0.005239823458 | G96: 0.000263247998 | H96: 0.002248284921 | I96: 9.025806452e-06 | J96: 0.002927399296 | K96: 5.804834354e-05 | L96: 0.01785360402 | N96: 0.006936302386 | O96: 0.004883090303 | P96: 0.0001279796802 | Q96: 0.002130817539 | R96: 6.479992006e-06 | S96: 0.001888238037 | T96: 5.546457146e-05 | U96: 0.01407818991
A97: 2004 | B97: 1 | C97: 4 | D97: 23 | E97: 0.006293501435 | F97: 0.005192648607 | G97: 0.000263247998 | H97: 0.001868019492 | I97: 9.025806452e-06 | J97: 0.002670247744 | K97: 5.804834354e-05 | L97: 0.01635473943 | N97: 0.006141673587 | O97: 0.00483912717 | P97: 0.0001279796802 | Q97: 0.001770420048 | R97: 6.479992006e-06 | S97: 0.001722369533 | T97: 5.546457146e-05 | U97: 0.01287920048
A98: 2004 | B98: 1 | C98: 4 | D98: 24 | E98: 0.004583600672 | F98: 0.00537990669 | G98: 0.000263247998 | H98: 0.001931496143 | I98: 9.025806452e-06 | J98: 0.003017981056 | K98: 5.804834354e-05 | L98: 0.01524330671 | N98: 0.004473023398 | O98: 0.005013636509 | P98: 0.0001279796802 | Q98: 0.001830580199 | R98: 6.479992006e-06 | S98: 0.001946665299 | T98: 5.546457146e-05 | U98: 0.01144521979
A99: 2004 | B99: 1 | C99: 5 | D99: 1 | E99: 0.004538159346 | F99: 0.005790344575 | G99: 0.000263247998 | H99: 0.002252873767 | I99: 9.025806452e-06 | J99: 0.003006608064 | K99: 5.804834354e-05 | L99: 0.0159183079 | N99: 0.004428678323 | O99: 0.005396131315 | P99: 0.0001279796802 | Q99: 0.002135166629 | R99: 6.479992006e-06 | S99: 0.001939329465 | T99: 5.546457146e-05 | U99: 0.01208795595
A100: 2004 | B100: 1 | C100: 5 | D100: 2 | E100: 0.004234192224 | F100: 0.005804877657 | G100: 0.000263247998 | H100: 0.002439153634 | I100: 9.025806452e-06 | J100: 0.003541845568 | K100: 5.804834354e-05 | L100: 0.01635039123 | N100: 0.00413204427 | O100: 0.005409674968 | P100: 0.0001279796802 | Q100: 0.002311713829 | R100: 6.479992006e-06 | S100: 0.002284569629 | T100: 5.546457146e-05 | U100: 0.01198141275
A101: 2004 | B101: 1 | C101: 5 | D101: 3 | E101: 0.004114019735 | F101: 0.005816243311 | G101: 0.000263247998 | H101: 0.0025037266 | I101: 9.025806452e-06 | J101: 0.003293953536 | K101: 5.804834354e-05 | L101: 0.01605826533 | N101: 0.004014770887 | O101: 0.005420266836 | P101: 0.0001279796802 | Q101: 0.002372913016 | R101: 6.479992006e-06 | S101: 0.002124673723 | T101: 5.546457146e-05 | U101: 0.01193593042
A102: 2004 | B102: 1 | C102: 5 | D102: 4 | E102: 0.004354895766 | F102: 0.005803116849 | G102: 0.000263247998 | H102: 0.002584943696 | I102: 9.025806452e-06 | J102: 0.003145298752 | K102: 5.804834354e-05 | L102: 0.01621857721 | N102: 0.004249835894 | O102: 0.005408034038 | P102: 0.0001279796802 | Q102: 0.002449886717 | R102: 6.479992006e-06 | S102: 0.002028788061 | T102: 5.546457146e-05 | U102: 0.01223573633
A103: 2004 | B103: 1 | C103: 5 | D103: 5 | E103: 0.004366169035 | F103: 0.005830569952 | G103: 0.000263247998 | H103: 0.002646780266 | I103: 9.025806452e-06 | J103: 0.00296534304 | K103: 5.804834354e-05 | L103: 0.01613918444 | N103: 0.0042608372 | O103: 0.005433618102 | P103: 0.0001279796802 | Q103: 0.002508492478 | R103: 6.479992006e-06 | S103: 0.001912712601 | T103: 5.546457146e-05 | U103: 0.01233092746
A104: 2004 | B104: 1 | C104: 5 | D104: 6 | E104: 0.00473913891 | F104: 0.006156562943 | G104: 0.000263247998 | H104: 0.002783054664 | I104: 9.025806452e-06 | J104: 0.00344925088 | K104: 5.804834354e-05 | L104: 0.01745832954 | N104: 0.004624809348 | O104: 0.005737417118 | P104: 0.0001279796802 | Q104: 0.002637646872 | R104: 6.479992006e-06 | S104: 0.002224843984 | T104: 5.546457146e-05 | U104: 0.01312785302
A105: 2004 | B105: 1 | C105: 5 | D105: 7 | E105: 0.005552604598 | F105: 0.007067666246 | G105: 0.000263247998 | H105: 0.002572704833 | I105: 9.025806452e-06 | J105: 0.003480652352 | K105: 5.804834354e-05 | L105: 0.01900395018 | N105: 0.005418650547 | O105: 0.00658649147 | P105: 0.0001279796802 | Q105: 0.002438287305 | R105: 6.479992006e-06 | S105: 0.002245098636 | T105: 5.546457146e-05 | U105: 0.014571409
A106: 2004 | B106: 1 | C106: 5 | D106: 8 | E106: 0.006770312272 | F106: 0.008393444223 | G106: 0.0001974359985 | H106: 0.003037196084 | I106: 6.769354839e-06 | J106: 0.003401946816 | K106: 5.804834354e-05 | L106: 0.02186515309 | N106: 0.006606981579 | O106: 0.007822008972 | P106: 9.598476016e-05 | Q106: 0.002878510026 | R106: 4.859994005e-06 | S106: 0.002194331804 | T106: 5.546457146e-05 | U106: 0.01740348534
A107: 2004 | B107: 1 | C107: 5 | D107: 9 | E107: 0.007008686999 | F107: 0.009194070337 | G107: 0 | H107: 0.002928807958 | I107: 0 | J107: 0.003596194368 | K107: 5.804834354e-05 | L107: 0.022785808 | N107: 0.006839605625 | O107: 0.008568127546 | P107: 0 | Q107: 0.002775784913 | R107: 0 | S107: 0.002319625821 | T107: 5.546457146e-05 | U107: 0.01818351808
A108: 2004 | B108: 1 | C108: 5 | D108: 10 | E108: 0.006678247903 | F108: 0.009605529305 | G108: 0 | H108: 0.003687022716 | I108: 0 | J108: 0.00364198848 | K108: 5.804834354e-05 | L108: 0.02367083675 | N108: 0.006517138221 | O108: 0.008951573919 | P108: 0 | Q108: 0.003494384807 | R108: 0 | S108: 0.002349164048 | T108: 5.546457146e-05 | U108: 0.01896309695
A109: 2004 | B109: 1 | C109: 5 | D109: 11 | E109: 0.006551402123 | F109: 0.00967697565 | G109: 0 | H109: 0.003679472193 | I109: 0 | J109: 0.003431134272 | K109: 5.804834354e-05 | L109: 0.02339703258 | N109: 0.006393352538 | O109: 0.009018156115 | P109: 0 | Q109: 0.00348722878 | R109: 0 | S109: 0.002213158366 | T109: 5.546457146e-05 | U109: 0.01889873743
A110: 2004 | B110: 1 | C110: 5 | D110: 12 | E110: 0.006519231022 | F110: 0.009528190643 | G110: 0 | H110: 0.003572495221 | I110: 0 | J110: 0.00357656832 | K110: 5.804834354e-05 | L110: 0.02325453355 | N110: 0.00636195755 | O110: 0.008879500561 | P110: 0 | Q110: 0.003385841093 | R110: 0 | S110: 0.002306966581 | T110: 5.546457146e-05 | U110: 0.01862729921
A111: 2004 | B111: 1 | C111: 5 | D111: 13 | E111: 0.006524453492 | F111: 0.00964824145 | G111: 0 | H111: 0.003247619966 | I111: 0 | J111: 0.003208202496 | K111: 5.804834354e-05 | L111: 0.02268656575 | N111: 0.006367054031 | O111: 0.008991378173 | P111: 0 | Q111: 0.003077939774 | R111: 0 | S111: 0.002069362383 | T111: 5.546457146e-05 | U111: 0.01843637198
A112: 2004 | B112: 1 | C112: 5 | D112: 14 | E112: 0.006419099001 | F112: 0.009560194477 | G112: 0 | H112: 0.003466108963 | I112: 0 | J112: 0.003419258048 | K112: 5.804834354e-05 | L112: 0.02292270883 | N112: 0.006264241169 | O112: 0.008909325538 | P112: 0 | Q112: 0.003285013256 | R112: 0 | S112: 0.002205497936 | T112: 5.546457146e-05 | U112: 0.01845857996
A113: 2004 | B113: 1 | C113: 5 | D113: 15 | E113: 0.006436969933 | F113: 0.009416286266 | G113: 0 | H113: 0.003411932087 | I113: 0 | J113: 0.00321675744 | K113: 5.804834354e-05 | L113: 0.02253999407 | N113: 0.006281680972 | O113: 0.008775214762 | P113: 0 | Q113: 0.00323366699 | R113: 0 | S113: 0.002074880514 | T113: 5.546457146e-05 | U113: 0.01829056272
A114: 2004 | B114: 1 | C114: 5 | D114: 16 | E114: 0.006774095968 | F114: 0.008968121627 | G114: 0 | H114: 0.003077011367 | I114: 0 | J114: 0.003411307136 | K114: 5.804834354e-05 | L114: 0.02228858444 | N114: 0.006610673996 | O114: 0.008357561682 | P114: 0 | Q114: 0.002916245058 | R114: 0 | S114: 0.00220036942 | T114: 5.546457146e-05 | U114: 0.01788448074
A115: 2004 | B115: 1 | C115: 5 | D115: 17 | E115: 0.007567624417 | F115: 0.009016339484 | G115: 6.58119995e-05 | H115: 0.00320656871 | I115: 2.256451613e-06 | J115: 0.003207598976 | K115: 5.804834354e-05 | L115: 0.02312424838 | N115: 0.007385058933 | O115: 0.008402496812 | P115: 3.199492005e-05 | Q115: 0.003039033346 | R115: 1.619998002e-06 | S115: 0.002068973099 | T115: 5.546457146e-05 | U115: 0.01885858401
A116: 2004 | B116: 1 | C116: 5 | D116: 18 | E116: 0.008971509362 | F116: 0.009131014343 | G116: 0.000263247998 | H116: 0.003190056884 | I116: 9.025806452e-06 | J116: 0.003568617408 | K116: 5.804834354e-05 | L116: 0.02519152014 | N116: 0.008755075794 | O116: 0.008509364476 | P116: 0.0001279796802 | Q116: 0.003023384223 | R116: 6.479992006e-06 | S116: 0.002301838065 | T116: 5.546457146e-05 | U116: 0.02041580417
A117: 2004 | B117: 1 | C117: 5 | D117: 19 | E117: 0.009081734735 | F117: 0.009225591815 | G117: 0.000263247998 | H117: 0.00343824991 | I117: 9.025806452e-06 | J117: 0.003456094784 | K117: 5.804834354e-05 | L117: 0.02553199339 | N117: 0.008862642031 | O117: 0.008597503007 | P117: 0.0001279796802 | Q117: 0.003258609771 | R117: 6.479992006e-06 | S117: 0.002229258455 | T117: 5.546457146e-05 | U117: 0.02084673449
A118: 2004 | B118: 1 | C118: 5 | D118: 20 | E118: 0.008921226069 | F118: 0.008719629821 | G118: 0.000263247998 | H118: 0.002915390347 | I118: 9.025806452e-06 | J118: 0.003774137408 | K118: 5.804834354e-05 | L118: 0.02466070579 | N118: 0.008706005563 | O118: 0.008125987482 | P118: 0.0001279796802 | Q118: 0.00276306834 | R118: 6.479992006e-06 | S118: 0.002434403063 | T118: 5.546457146e-05 | U118: 0.01972304107
A119: 2004 | B119: 1 | C119: 5 | D119: 21 | E119: 0.008439709505 | F119: 0.008687387404 | G119: 0.000263247998 | H119: 0.003032215459 | I119: 9.025806452e-06 | J119: 0.003623972928 | K119: 5.804834354e-05 | L119: 0.02411360744 | N119: 0.008236105366 | O119: 0.008095940166 | P119: 0.0001279796802 | Q119: 0.002873789626 | R119: 6.479992006e-06 | S119: 0.002337543614 | T119: 5.546457146e-05 | U119: 0.01933381484
A120: 2004 | B120: 1 | C120: 5 | D120: 22 | E120: 0.007738660364 | F120: 0.00866921952 | G120: 0.000263247998 | H120: 0.002829192861 | I120: 9.025806452e-06 | J120: 0.003457101248 | K120: 5.804834354e-05 | L120: 0.02302449614 | N120: 0.007551968716 | O120: 0.008079009172 | P120: 0.0001279796802 | Q120: 0.002681374461 | R120: 6.479992006e-06 | S120: 0.002229907647 | T120: 5.546457146e-05 | U120: 0.01844033203
A121: 2004 | B121: 1 | C121: 5 | D121: 23 | E121: 0.007020763281 | F121: 0.007946237176 | G121: 0.000263247998 | H121: 0.002501946829 | I121: 9.025806452e-06 | J121: 0.003357964544 | K121: 5.804834354e-05 | L121: 0.02115723398 | N121: 0.006851390572 | O121: 0.00740524829 | P121: 0.0001279796802 | Q121: 0.002371226234 | R121: 6.479992006e-06 | S121: 0.002165962255 | T121: 5.546457146e-05 | U121: 0.01675584478
A122: 2004 | B122: 1 | C122: 5 | D122: 24 | E122: 0.005516847862 | F122: 0.007505425825 | G122: 0.000263247998 | H122: 0.002871889674 | I122: 9.025806452e-06 | J122: 0.00334437728 | K122: 5.804834354e-05 | L122: 0.01956886279 | N122: 0.005383756426 | O122: 0.006994447878 | P122: 0.0001279796802 | Q122: 0.00272184047 | R122: 6.479992006e-06 | S122: 0.002157198165 | T122: 5.546457146e-05 | U122: 0.01522802445
A123: 2004 | B123: 1 | C123: 6 | D123: 1 | E123: 0.00464364073 | F123: 0.007218050442 | G123: 0.000263247998 | H123: 0.002745780802 | I123: 9.025806452e-06 | J123: 0.003147110336 | K123: 5.804834354e-05 | L123: 0.01808490446 | N123: 0.004531615018 | O123: 0.006726637338 | P123: 0.0001279796802 | Q123: 0.002602320478 | R123: 6.479992006e-06 | S123: 0.002029956573 | T123: 5.546457146e-05 | U123: 0.01398855251
A124: 2004 | B124: 1 | C124: 6 | D124: 2 | E124: 0.004319478348 | F124: 0.006667741469 | G124: 0.000263247998 | H124: 0.002684118919 | I124: 9.025806452e-06 | J124: 0.003558754112 | K124: 5.804834354e-05 | L124: 0.017560415 | N124: 0.004215272905 | O124: 0.006213794028 | P124: 0.0001279796802 | Q124: 0.002543880278 | R124: 6.479992006e-06 | S124: 0.002295476018 | T124: 5.546457146e-05 | U124: 0.01310092689
A125: 2004 | B125: 1 | C125: 6 | D125: 3 | E125: 0.004303334266 | F125: 0.006261838705 | G125: 0.000263247998 | H125: 0.002709270072 | I125: 9.025806452e-06 | J125: 0.00341734592 | K125: 5.804834354e-05 | L125: 0.01702211111 | N125: 0.004199518292 | O125: 0.005835525587 | P125: 0.0001279796802 | Q125: 0.002567717345 | R125: 6.479992006e-06 | S125: 0.002204264571 | T125: 5.546457146e-05 | U125: 0.0127307409
A126: 2004 | B126: 1 | C126: 6 | D126: 4 | E126: 0.00431116749 | F126: 0.006155960535 | G126: 0.000263247998 | H126: 0.002580867768 | I126: 9.025806452e-06 | J126: 0.003419157504 | K126: 5.804834354e-05 | L126: 0.01679747544 | N126: 0.004207162543 | O126: 0.005736855723 | P126: 0.0001279796802 | Q126: 0.002446023746 | R126: 6.479992006e-06 | S126: 0.002205433083 | T126: 5.546457146e-05 | U126: 0.01251802169
A127: 2004 | B127: 1 | C127: 6 | D127: 5 | E127: 0.00445632362 | F127: 0.006191920776 | G127: 0.000263247998 | H127: 0.002611300988 | I127: 9.025806452e-06 | J127: 0.002988089024 | K127: 5.804834354e-05 | L127: 0.01657795656 | N127: 0.004348816847 | O127: 0.00577036775 | P127: 0.0001279796802 | Q127: 0.002474866906 | R127: 6.479992006e-06 | S127: 0.00192738427 | T127: 5.546457146e-05 | U127: 0.01272203118
A128: 2004 | B128: 1 | C128: 6 | D128: 6 | E128: 0.004835840186 | F128: 0.006485847951 | G128: 0.000263247998 | H128: 0.002798044647 | I128: 9.025806452e-06 | J128: 0.003415332992 | K128: 5.804834354e-05 | L128: 0.01786538792 | N128: 0.004719177749 | O128: 0.006044284028 | P128: 0.0001279796802 | Q128: 0.002651853665 | R128: 6.479992006e-06 | S128: 0.002202966187 | T128: 5.546457146e-05 | U128: 0.01354329512
A129: 2004 | B129: 1 | C129: 6 | D129: 7 | E129: 0.005822033647 | F129: 0.007289605046 | G129: 0.000263247998 | H129: 0.003023633742 | I129: 9.025806452e-06 | J129: 0.003297677248 | K129: 5.804834354e-05 | L129: 0.01976327183 | N129: 0.005681579743 | O129: 0.006793320423 | P129: 0.0001279796802 | Q129: 0.002865656283 | R129: 6.479992006e-06 | S129: 0.0021270756 | T129: 5.546457146e-05 | U129: 0.01546853613
A130: 2004 | B130: 1 | C130: 6 | D130: 8 | E130: 0.006552956119 | F130: 0.008916603449 | G130: 0.0001974359985 | H130: 0.002853436845 | I130: 6.769354839e-06 | J130: 0.00356559776 | K130: 5.804834354e-05 | L130: 0.02215084787 | N130: 0.006394869044 | O130: 0.00830955092 | P130: 9.598476016e-05 | Q130: 0.002704351757 | R130: 4.859994005e-06 | S130: 0.002299890324 | T130: 5.546457146e-05 | U130: 0.01750475648
A131: 2004 | B131: 1 | C131: 6 | D131: 9 | E131: 0.006757671069 | F131: 0.009305494492 | G131: 0 | H131: 0.003117426596 | I131: 0 | J131: 0.003684360512 | K131: 5.804834354e-05 | L131: 0.02292300101 | N131: 0.00659464534 | O131: 0.008671965818 | P131: 0 | Q131: 0.00295454869 | R131: 0 | S131: 0.002376494956 | T131: 5.546457146e-05 | U131: =SUM(N131:Q131) -> 0.01822115985
A132: 2004 | B132: 1 | C132: 6 | D132: 10 | E132: 0.006290693666 | F132: 0.009689255695 | G132: 0 | H132: 0.003778892296 | I132: 0 | J132: 0.003631621696 | K132: 5.804834354e-05 | L132: 0.0234485117 | N132: =E132*X$5 -> 0.006138933553 | O132: =F132*Y$5 -> 0.00902960012 | P132: =G132*Z$5 -> 0 | Q132: =H132*AA$5 -> 0.003581454426 | R132: =I132*AB$5 -> 0 | S132: =J132*AC$5 -> 0.00234247724 | T132: =K132*AD$5 -> 5.546457146e-05 | U132: 0.0187499881
A133: 2004 | B133: 1 | C133: 6 | D133: 11 | E133: 0.006045736464 | F133: 0.009790631574 | G133: 0 | H133: 0.003391979713 | I133: 0 | J133: 0.003743037312 | K133: 5.804834354e-05 | L133: 0.02302943341 | N133: 0.005899885832 | O133: 0.009124074214 | P133: 0 | Q133: 0.003214757078 | R133: 0 | S133: 0.002414342805 | T133: 5.546457146e-05 | U133: 0.01823871712
A134: 2004 | B134: 1 | C134: 6 | D134: 12 | E134: 0.006265428953 | F134: 0.009542157026 | G134: 0 | H134: 0.003166702853 | I134: 0 | J134: 0.003776552512 | K134: 5.804834354e-05 | L134: 0.02280888969 | N134: 0.00611427834 | O134: 0.008892516097 | P134: 0 | Q134: 0.003001250382 | R134: 0 | S134: 0.002435960859 | T134: 5.546457146e-05 | U134: 0.01800804482
A135: 2004 | B135: 1 | C135: 6 | D135: 13 | E135: 0.006086059803 | F135: 0.009728299019 | G135: 0 | H135: 0.003167744085 | I135: 0 | J135: 0.003401342784 | K135: 5.804834354e-05 | L135: 0.02244149403 | N135: 0.005939236388 | O135: 0.009065985331 | P135: 0 | Q135: 0.003002237213 | R135: 0 | S135: 0.00219394219 | T135: 5.546457146e-05 | U135: 0.01800745893
A136: 2004 | B136: 1 | C136: 6 | D136: 14 | E136: 0.005932308111 | F136: 0.009678596116 | G136: 0 | H136: 0.003326634024 | I136: 0 | J136: 0.003702778752 | K136: 5.804834354e-05 | L136: 0.02269836535 | N136: 0.005789193886 | O136: 0.009019666258 | P136: 0 | Q136: 0.003152825541 | R136: 0 | S136: 0.002388375133 | T136: 5.546457146e-05 | U136: 0.01796168569
A137: 2004 | B137: 1 | C137: 6 | D137: 15 | E137: 0.006021732759 | F137: 0.009526962437 | G137: 0 | H137: 0.003312640869 | I137: 0 | J137: 0.003382924544 | K137: 5.804834354e-05 | L137: 0.02230230895 | N137: 0.005876461206 | O137: 0.008878355973 | P137: 0 | Q137: 0.003139563495 | R137: 0 | S137: 0.002182062013 | T137: 5.546457146e-05 | U137: 0.01789438067
A138: 2004 | B138: 1 | C138: 6 | D138: 16 | E138: 0.006011530632 | F138: 0.009080960901 | G138: 0 | H138: 0.003223726204 | I138: 0 | J138: 0.003464448384 | K138: 5.804834354e-05 | L138: 0.02183871447 | N138: 0.0058665052 | O138: 0.00846271873 | P138: 0 | Q138: 0.003055294404 | R138: 0 | S138: 0.002234646714 | T138: 5.546457146e-05 | U138: 0.01738451833
A139: 2004 | B139: 1 | C139: 6 | D139: 17 | E139: 0.006960251776 | F139: 0.009221934506 | G139: 6.58119995e-05 | H139: 0.003204037807 | I139: 2.256451613e-06 | J139: 0.003054515648 | K139: 5.804834354e-05 | L139: 0.02256685653 | N139: 0.00679233888 | O139: 0.008594094691 | P139: 3.199492005e-05 | Q139: 0.003036634677 | R139: 1.619998002e-06 | S139: 0.001970230928 | T139: 5.546457146e-05 | U139: 0.01845506317
A140: 2004 | B140: 1 | C140: 6 | D140: 18 | E140: 0.008288349246 | F140: 0.0094323061 | G140: 0.000263247998 | H140: 0.003574120408 | I140: 9.025806452e-06 | J140: 0.00321011488 | K140: 5.804834354e-05 | L140: 0.02483521278 | N140: 0.008088396604 | O140: 0.008790143947 | P140: 0.0001279796802 | Q140: 0.003387381368 | R140: 6.479992006e-06 | S140: 0.002070595914 | T140: 5.546457146e-05 | U140: 0.0203939016
A141: 2004 | B141: 1 | C141: 6 | D141: 19 | E141: 0.008724273565 | F141: 0.009351139399 | G141: 0.000263247998 | H141: 0.00329880424 | I141: 9.025806452e-06 | J141: 0.003509839808 | K141: 5.804834354e-05 | L141: 0.02521437916 | N141: 0.008513804448 | O141: 0.008714503168 | P141: 0.0001279796802 | Q141: 0.003126449796 | R141: 6.479992006e-06 | S141: 0.002263925198 | T141: 5.546457146e-05 | U141: 0.02048273709
A142: 2004 | B142: 1 | C142: 6 | D142: 20 | E142: 0.008654682236 | F142: 0.008940369048 | G142: 0.000263247998 | H142: 0.00298297854 | I142: 9.025806452e-06 | J142: 0.00348014912 | K142: 5.804834354e-05 | L142: 0.02438850109 | N142: 0.008445891978 | O142: 0.00833169853 | P142: 0.0001279796802 | Q142: 0.002827125215 | R142: 6.479992006e-06 | S142: 0.00224477404 | T142: 5.546457146e-05 | U142: 0.0197326954
A143: 2004 | B143: 1 | C143: 6 | D143: 21 | E143: 0.008480391965 | F143: 0.008793124952 | G143: 0.000263247998 | H143: 0.002966605881 | I143: 9.025806452e-06 | J143: 0.003250071552 | K143: 5.804834354e-05 | L143: 0.0238205165 | N143: 0.008275806381 | O143: 0.008194478981 | P143: 0.0001279796802 | Q143: 0.002811607988 | R143: 6.479992006e-06 | S143: 0.002096368861 | T143: 5.546457146e-05 | U143: 0.01940987303
A144: 2004 | B144: 1 | C144: 6 | D144: 22 | E144: 0.007705842692 | F144: 0.008669035214 | G144: 0.000263247998 | H144: 0.002792169417 | I144: 9.025806452e-06 | J144: 0.003661010752 | K144: 5.804834354e-05 | L144: 0.02315838022 | N144: 0.007519942755 | O144: 0.008078837413 | P144: 0.0001279796802 | Q144: 0.002646285401 | R144: 6.479992006e-06 | S144: 0.002361433839 | T144: 5.546457146e-05 | U144: 0.01837304525
A145: 2004 | B145: 1 | C145: 6 | D145: 23 | E145: 0.006997466554 | F145: 0.008020520945 | G145: 0.000263247998 | H145: 0.002282066811 | I145: 9.025806452e-06 | J145: 0.003580996864 | K145: 5.804834354e-05 | L145: 0.02121137332 | N145: 0.006828655868 | O145: 0.007474474735 | P145: 0.0001279796802 | Q145: 0.002162834408 | R145: 6.479992006e-06 | S145: 0.002309823091 | T145: 5.546457146e-05 | U145: 0.01659394469
A146: 2004 | B146: 1 | C146: 6 | D146: 24 | E146: 0.005426523294 | F146: 0.007507153825 | G146: 0.000263247998 | H146: 0.002340938023 | I146: 9.025806452e-06 | J146: 0.003584720832 | K146: 5.804834354e-05 | L146: 0.01918965812 | N146: 0.005295610897 | O146: 0.006996058234 | P146: 0.0001279796802 | Q146: 0.002218629743 | R146: 6.479992006e-06 | S146: 0.002312225133 | T146: 5.546457146e-05 | U146: 0.01463827855
A147: 2004 | B147: 1 | C147: 7 | D147: 1 | E147: 0.004563830169 | F147: 0.007345574648 | G147: 0.000263247998 | H147: 0.002577546529 | I147: 9.025806452e-06 | J147: 0.00331327744 | K147: 5.804834354e-05 | L147: 0.01813055093 | N147: 0.00445372985 | O147: 0.006845479551 | P147: 0.0001279796802 | Q147: 0.002442876034 | R147: 6.479992006e-06 | S147: 0.002137138073 | T147: 5.546457146e-05 | U147: 0.01387006512
A148: 2004 | B148: 1 | C148: 7 | D148: 2 | E148: 0.004237208813 | F148: 0.006731139504 | G148: 0.000263247998 | H148: 0.002509686618 | I148: 9.025806452e-06 | J148: 0.00379638016 | K148: 5.804834354e-05 | L148: 0.01760473724 | N148: 0.004134988085 | O148: 0.006272875853 | P148: 0.0001279796802 | Q148: 0.002378561637 | R148: 6.479992006e-06 | S148: 0.002448750135 | T148: 5.546457146e-05 | U148: 0.01291440526
A149: 2004 | B149: 1 | C149: 7 | D149: 3 | E149: 0.004224607519 | F149: 0.006392700569 | G149: 0.000263247998 | H149: 0.002539768785 | I149: 9.025806452e-06 | J149: 0.003577675584 | K149: 5.804834354e-05 | L149: 0.01706507461 | N149: 0.004122690791 | O149: 0.005957478227 | P149: 0.0001279796802 | Q149: 0.002407072085 | R149: 6.479992006e-06 | S149: 0.002307680791 | T149: 5.546457146e-05 | U149: 0.01261522078
A150: 2004 | B150: 1 | C150: 7 | D150: 4 | E150: 0.004180074069 | F150: 0.006278258224 | G150: 0.000263247998 | H150: 0.002323277573 | I150: 9.025806452e-06 | J150: 0.003727940608 | K150: 5.804834354e-05 | L150: 0.01683987262 | N150: 0.00407923169 | O150: 0.005850827246 | P150: 0.0001279796802 | Q150: 0.002201892008 | R150: 6.479992006e-06 | S150: 0.002404605093 | T150: 5.546457146e-05 | U150: 0.01225993063
A151: 2004 | B151: 1 | C151: 7 | D151: 5 | E151: 0.004317805815 | F151: 0.006366105581 | G151: 0.000263247998 | H151: 0.00233939098 | I151: 9.025806452e-06 | J151: 0.003266174976 | K151: 5.804834354e-05 | L151: 0.0166197995 | N151: 0.004213640721 | O151: 0.005932693855 | P151: 0.0001279796802 | Q151: 0.002217163529 | R151: 6.479992006e-06 | S151: 0.00210675593 | T151: 5.546457146e-05 | U151: 0.01249147779
A152: 2004 | B152: 1 | C152: 7 | D152: 6 | E152: 0.004696585318 | F152: 0.006619378823 | G152: 0.000263247998 | H152: 0.002520652919 | I152: 9.025806452e-06 | J152: 0.0037435408 | K152: 5.804834354e-05 | L152: 0.01791048001 | N152: 0.004583282341 | O152: 0.006168723966 | P152: 0.0001279796802 | Q152: 0.002388954976 | R152: 6.479992006e-06 | S152: 0.002414667566 | T152: 5.546457146e-05 | U152: 0.01326894096
A153: 2004 | B153: 1 | C153: 7 | D153: 7 | E153: 0.00568775145 | F153: 0.007305822005 | G153: 0.000263247998 | H153: 0.002744308693 | I153: 9.025806452e-06 | J153: 0.003744949696 | K153: 5.804834354e-05 | L153: 0.01981315399 | N153: 0.005550537043 | O153: 0.006808433314 | P153: 0.0001279796802 | Q153: 0.002600925283 | R153: 6.479992006e-06 | S153: 0.002415576335 | T153: 5.546457146e-05 | U153: 0.01508787532
A154: 2004 | B154: 1 | C154: 7 | D154: 8 | E154: 0.006540514613 | F154: 0.00893417969 | G154: 0.0001974359985 | H154: 0.002775380958 | I154: 6.769354839e-06 | J154: 0.003694425152 | K154: 5.804834354e-05 | L154: 0.02220675411 | N154: 0.006382727684 | O154: 0.008325930551 | P154: 9.598476016e-05 | Q154: 0.002630374098 | R154: 4.859994005e-06 | S154: 0.002382986874 | T154: 5.546457146e-05 | U154: 0.01743501709
A155: 2004 | B155: 1 | C155: 7 | D155: 9 | E155: 0.006786182266 | F155: 0.009352899096 | G155: 0 | H155: 0.003112553044 | I155: 0 | J155: 0.003671175936 | K155: 5.804834354e-05 | L155: 0.02298085868 | N155: 0.006622468717 | O155: 0.008716143062 | P155: 0 | Q155: 0.002949929768 | R155: 0 | S155: 0.00236799061 | T155: 5.546457146e-05 | U155: 0.01828854155
A156: 2004 | B156: 1 | C156: 7 | D156: 10 | E156: 0.00635583316 | F156: 0.009726950461 | G156: 0 | H156: 0.003840216435 | I156: 0 | J156: 0.003526647552 | K156: 5.804834354e-05 | L156: 0.02350769595 | N156: 0.006202501587 | O156: 0.009064728584 | P156: 0 | Q156: 0.003639574529 | R156: 0 | S156: 0.002274766569 | T156: 5.546457146e-05 | U156: 0.0189068047
A157: 2004 | B157: 1 | C157: 7 | D157: 11 | E157: 0.006176776418 | F157: 0.009716126402 | G157: 0 | H157: 0.00356366319 | I157: 0 | J157: 0.003572944896 | K157: 5.804834354e-05 | L157: 0.02308755925 | N157: 0.006027764507 | O157: 0.00905464144 | P157: 0 | Q157: 0.003377470514 | R157: 0 | S157: 0.002304629391 | T157: 5.546457146e-05 | U157: 0.01845987646
A158: 2004 | B158: 1 | C158: 7 | D158: 12 | E158: 0.006249466972 | F158: 0.009657467061 | G158: 0 | H158: 0.003093825469 | I158: 0 | J158: 0.003807652352 | K158: 5.804834354e-05 | L158: 0.0228664602 | N158: 0.006098701434 | O158: 0.008999975693 | P158: 0 | Q158: 0.002932180664 | R158: 0 | S158: 0.002456020951 | T158: 5.546457146e-05 | U158: 0.01803085779
A159: 2004 | B159: 1 | C159: 7 | D159: 13 | E159: 0.00616563168 | F159: 0.009856121761 | G159: 0 | H159: 0.003256831186 | I159: 0 | J159: 0.003161502464 | K159: 5.804834354e-05 | L159: 0.02249813543 | N159: 0.006016888631 | O159: 0.009185105755 | P159: 0 | Q159: 0.003086669731 | R159: 0 | S159: 0.002039239818 | T159: 5.546457146e-05 | U159: 0.01828866412
A160: 2004 | B160: 1 | C160: 7 | D160: 14 | E160: 0.005968395206 | F160: 0.009823371691 | G160: 0 | H160: 0.003344265947 | I160: 0 | J160: 0.003561571904 | K160: 5.804834354e-05 | L160: 0.02275565309 | N160: 0.005824410396 | O160: 0.009154585347 | P160: 0 | Q160: 0.00316953624 | R160: 0 | S160: 0.002297293557 | T160: 5.546457146e-05 | U160: 0.01814853198
A161: 2004 | B161: 1 | C161: 7 | D161: 15 | E161: 0.00593139948 | F161: 0.009553001442 | G161: 0 | H161: 0.003120216626 | I161: 0 | J161: 0.003695934848 | K161: 5.804834354e-05 | L161: 0.02235860074 | N161: 0.005788307175 | O161: 0.008902622213 | P161: 0 | Q161: 0.002957192947 | R161: 0 | S161: 0.002383960662 | T161: 5.546457146e-05 | U161: 0.01764812234
A162: 2004 | B162: 1 | C162: 7 | D162: 16 | E162: 0.005968890459 | F162: 0.009270803137 | G162: 0 | H162: 0.003112723536 | I162: 0 | J162: 0.003483369856 | K162: 5.804834354e-05 | L162: 0.02189383533 | N162: 0.005824893701 | O162: 0.00863963629 | P162: 0 | Q162: 0.002950091353 | R162: 0 | S162: 0.002246851487 | T162: 5.546457146e-05 | U162: 0.01741462134
A163: 2004 | B163: 1 | C163: 7 | D163: 17 | E163: 0.006956123608 | F163: 0.009195039642 | G163: 6.58119995e-05 | H163: 0.003152625361 | I163: 2.256451613e-06 | J163: 0.003193910912 | K163: 5.804834354e-05 | L163: 0.02262381632 | N163: 0.006788310302 | O163: 0.00856903086 | P163: 3.199492005e-05 | Q163: 0.002987908406 | R163: 1.619998002e-06 | S163: 0.002060143992 | T163: 5.546457146e-05 | U163: 0.01837724449
A164: 2004 | B164: 1 | C164: 7 | D164: 18 | E164: 0.008189421578 | F164: 0.009353353414 | G164: 0.000263247998 | H164: 0.003360767922 | I164: 9.025806452e-06 | J164: 0.003664030144 | K164: 5.804834354e-05 | L164: 0.02489789521 | N164: 0.007991855522 | O164: 0.00871656645 | P164: 0.0001279796802 | Q164: 0.003185176027 | R164: 6.479992006e-06 | S164: 0.002363381414 | T164: 5.546457146e-05 | U164: 0.02002157768
A165: 2004 | B165: 1 | C165: 7 | D165: 19 | E165: 0.008653375346 | F165: 0.009374650385 | G165: 0.000263247998 | H165: 0.003130537965 | I165: 9.025806452e-06 | J165: 0.003789133568 | K165: 5.804834354e-05 | L165: 0.02527801941 | N165: 0.008444616616 | O165: 0.008736413499 | P165: 0.0001279796802 | Q165: 0.002966975022 | R165: 6.479992006e-06 | S165: 0.002444075921 | T165: 5.546457146e-05 | U165: 0.02027598482
A166: 2004 | B166: 1 | C166: 7 | D166: 20 | E166: 0.008718913961 | F166: 0.009032082913 | G166: 0.000263247998 | H166: 0.003036537814 | I166: 9.025806452e-06 | J166: 0.003332198912 | K166: 5.804834354e-05 | L166: 0.02445005575 | N166: 0.008508574142 | O166: 0.008417168411 | P166: 0.0001279796802 | Q166: 0.002877886149 | R166: 6.479992006e-06 | S166: 0.002149342846 | T166: 5.546457146e-05 | U166: 0.01993160838
A167: 2004 | B167: 1 | C167: 7 | D167: 21 | E167: 0.008471824076 | F167: 0.008634737305 | G167: 0.000263247998 | H167: 0.00290070263 | I167: 9.025806452e-06 | J167: 0.00354305312 | K167: 5.804834354e-05 | L167: 0.02388063928 | N167: 0.008267445188 | O167: 0.008046874545 | P167: 0.0001279796802 | Q167: 0.00274914802 | R167: 6.479992006e-06 | S167: 0.002285348527 | T167: 5.546457146e-05 | U167: 0.01919144743
A168: 2004 | B168: 1 | C168: 7 | D168: 22 | E168: 0.007761534509 | F168: 0.008587355326 | G168: 0.000263247998 | H168: 0.002835847143 | I168: 9.025806452e-06 | J168: 0.003701772544 | K168: 5.804834354e-05 | L168: 0.02321683167 | N168: 0.007574291033 | O168: 0.008002718385 | P168: 0.0001279796802 | Q168: 0.002687681073 | R168: 6.479992006e-06 | S168: 0.002387726106 | T168: 5.546457146e-05 | U168: 0.01839267017
A169: 2004 | B169: 1 | C169: 7 | D169: 23 | E169: 0.006893633829 | F169: 0.008000819505 | G169: 0.000263247998 | H169: 0.002058262254 | I169: 9.025806452e-06 | J169: 0.003981871424 | K169: 5.804834354e-05 | L169: 0.02126490916 | N169: 0.00672732806 | O169: 0.007456114592 | P169: 0.0001279796802 | Q169: 0.001950723091 | R169: 6.479992006e-06 | S169: 0.00256839615 | T169: 5.546457146e-05 | U169: 0.01626214542
A170: 2004 | B170: 1 | C170: 7 | D170: 24 | E170: 0.005520796001 | F170: 0.007567394818 | G170: 0.000263247998 | H170: 0.002455173989 | I170: 9.025806452e-06 | J170: 0.00336440576 | K170: 5.804834354e-05 | L170: 0.01923809272 | N170: 0.005387609318 | O170: 0.007052197951 | P170: 0.0001279796802 | Q170: 0.002326897159 | R170: 6.479992006e-06 | S170: 0.002170116983 | T170: 5.546457146e-05 | U170: 0.01489468411
A171: 2004 | B171: 1 | C171: 8 | D171: 1 | E171: 0.004306269638 | F171: 0.00731741774 | G171: 0.000263247998 | H171: 0.002335494355 | I171: 9.025806452e-06 | J171: 0.00359760352 | K171: 5.804834354e-05 | L171: 0.0178871074 | N171: 0.004202382849 | O171: 0.006819239598 | P171: 0.0001279796802 | Q171: 0.002213470493 | R171: 6.479992006e-06 | S171: 0.002320534755 | T171: 5.546457146e-05 | U171: 0.01336307262
A172: 2004 | B172: 1 | C172: 8 | D172: 2 | E172: 0.004106491608 | F172: 0.006791260001 | G172: 0.000263247998 | H172: 0.002490340199 | I172: 9.025806452e-06 | J172: 0.003649939648 | K172: 5.804834354e-05 | L172: 0.0173683536 | N172: 0.004007424373 | O172: 0.006328903277 | P172: 0.0001279796802 | Q172: 0.002360226021 | R172: 6.479992006e-06 | S172: 0.002354292729 | T172: 5.546457146e-05 | U172: 0.01282453335
A173: 2004 | B173: 1 | C173: 8 | D173: 3 | E173: 0.004034831645 | F173: 0.006396211636 | G173: 0.000263247998 | H173: 0.002427148517 | I173: 9.025806452e-06 | J173: 0.003647423488 | K173: 5.804834354e-05 | L173: 0.01683593743 | N173: 0.003937493173 | O173: 0.005960750256 | P173: 0.0001279796802 | Q173: 0.00230033595 | R173: 6.479992006e-06 | S173: 0.002352669749 | T173: 5.546457146e-05 | U173: 0.01232655906
A174: 2004 | B174: 1 | C174: 8 | D174: 4 | E174: 0.004251944149 | F174: 0.006380182369 | G174: 0.000263247998 | H174: 0.00265104377 | I174: 9.025806452e-06 | J174: 0.003000267136 | K174: 5.804834354e-05 | L174: 0.01661375957 | N174: 0.004149367937 | O174: 0.00594581228 | P174: 0.0001279796802 | Q174: 0.002512533225 | R174: 6.479992006e-06 | S174: 0.001935239424 | T174: 5.546457146e-05 | U174: 0.01273569312
A175: 2004 | B175: 1 | C175: 8 | D175: 5 | E175: 0.004067122729 | F175: 0.006257438888 | G175: 0.000263247998 | H175: 0.002139624684 | I175: 9.025806452e-06 | J175: 0.003602132608 | K175: 5.804834354e-05 | L175: 0.01639664106 | N175: 0.00396900525 | O175: 0.005831425314 | P175: 0.0001279796802 | Q175: 0.002027834534 | R175: 6.479992006e-06 | S175: 0.002323456119 | T175: 5.546457146e-05 | U175: 0.01195624478
A176: 2004 | B176: 1 | C176: 8 | D176: 6 | E176: 0.00437845688 | F176: 0.00662323974 | G176: 0.000263247998 | H176: 0.002231098168 | I176: 9.025806452e-06 | J176: 0.004106874304 | K176: 5.804834354e-05 | L176: 0.01766999124 | N176: 0.004272828607 | O176: 0.006172322027 | P176: 0.0001279796802 | Q176: 0.002114528751 | R176: 6.479992006e-06 | S176: 0.002649025804 | T176: 5.546457146e-05 | U176: 0.01268765907
A177: 2004 | B177: 1 | C177: 8 | D177: 7 | E177: 0.005429016369 | F177: 0.007393334032 | G177: 0.000263247998 | H177: 0.002608331635 | I177: 9.025806452e-06 | J177: 0.003786114176 | K177: 5.804834354e-05 | L177: 0.01954711836 | N177: 0.005298043828 | O177: 0.006889987423 | P177: 0.0001279796802 | Q177: 0.002472052694 | R177: 6.479992006e-06 | S177: 0.002442128346 | T177: 5.546457146e-05 | U177: 0.01478806362
A178: 2004 | B178: 1 | C178: 8 | D178: 8 | E178: 0.006248005777 | F178: 0.008979496027 | G178: 0.0001974359985 | H178: 0.002593257104 | I178: 6.769354839e-06 | J178: 0.00382556736 | K178: 5.804834354e-05 | L178: 0.02190857996 | N178: 0.006097275491 | O178: 0.0083681617 | P178: 9.598476016e-05 | Q178: 0.00245776577 | R178: 4.859994005e-06 | S178: 0.002467576532 | T178: 5.546457146e-05 | U178: 0.01701918772
A179: 2004 | B179: 1 | C179: 8 | D179: 9 | E179: 0.006477797932 | F179: 0.009447400003 | G179: 0 | H179: 0.002877866847 | I179: 0 | J179: 0.003811174976 | K179: 5.804834354e-05 | L179: 0.0226722881 | N179: 0.006321524014 | O179: 0.00880421024 | P179: 0 | Q179: 0.002727505351 | R179: 0 | S179: 0.002458293123 | T179: 5.546457146e-05 | U179: 0.01785323961
A180: 2004 | B180: 1 | C180: 8 | D180: 10 | E180: 0.005994912521 | F180: 0.009775292564 | G180: 0 | H180: 0.003490625809 | I180: 0 | J180: 0.003873173056 | K180: 5.804834354e-05 | L180: 0.02319205229 | N180: 0.005850287994 | O180: 0.009109779502 | P180: 0 | Q180: 0.003308249157 | R180: 0 | S180: 0.002498283271 | T180: 5.546457146e-05 | U180: 0.01826831665
A181: 2004 | B181: 1 | C181: 8 | D181: 11 | E181: 0.006019863805 | F181: 0.009654934031 | G181: 0 | H181: 0.003551779759 | I181: 0 | J181: 0.003492931008 | K181: 5.804834354e-05 | L181: 0.02277755695 | N181: 0.005874637339 | O181: 0.008997615115 | P181: 0 | Q181: 0.003366207964 | R181: 0 | S181: 0.002253018643 | T181: 5.546457146e-05 | U181: 0.01823846042
A182: 2004 | B182: 1 | C182: 8 | D182: 12 | E182: 0.006234922893 | F182: 0.009581026522 | G182: 0 | H182: 0.003316293089 | I182: 0 | J182: 0.003369135936 | K182: 5.804834354e-05 | L182: 0.02255942678 | N182: 0.006084508224 | O182: 0.008928739313 | P182: 0 | Q182: 0.003143024895 | R182: 0 | S182: 0.002173168053 | T182: 5.546457146e-05 | U182: 0.01815627243
A183: 2004 | B183: 1 | C183: 8 | D183: 13 | E183: 0.0059275228 | F183: 0.00976864121 | G183: 0 | H183: 0.003092324261 | I183: 0 | J183: 0.003349509888 | K183: 5.804834354e-05 | L183: 0.0221960465 | N183: 0.005784524019 | O183: 0.00910358098 | P183: 0 | Q183: 0.00293075789 | R183: 0 | S183: 0.002160508812 | T183: 5.546457146e-05 | U183: 0.01781886289
A184: 2004 | B184: 1 | C184: 8 | D184: 14 | E184: 0.00572723547 | F184: 0.009773392846 | G184: 0 | H184: 0.003169027681 | I184: 0 | J184: 0.0037224048 | K184: 5.804834354e-05 | L184: 0.02245010914 | N184: 0.005589068529 | O184: 0.009108009118 | P184: 0 | Q184: 0.003003453744 | R184: 0 | S184: 0.002401034373 | T184: 5.546457146e-05 | U184: 0.01770053139
A185: 2004 | B185: 1 | C185: 8 | D185: 15 | E185: 0.005704270957 | F185: 0.009542895403 | G185: 0 | H185: 0.002964340122 | I185: 0 | J185: 0.00378883168 | K185: 5.804834354e-05 | L185: 0.02205838651 | N185: 0.005566658025 | O185: 0.008893204204 | P185: 0 | Q185: 0.002809460609 | R185: 0 | S185: 0.002443881197 | T185: 5.546457146e-05 | U185: 0.01726932284
A186: 2004 | B186: 1 | C186: 8 | D186: 16 | E186: 0.005785359414 | F186: 0.009122879994 | G186: 0 | H186: 0.003019463554 | I186: 0 | J186: 0.003614109632 | K186: 5.804834354e-05 | L186: 0.02159986094 | N186: 0.00564579026 | O186: 0.008501783923 | P186: 0 | Q186: 0.002861703977 | R186: 0 | S186: 0.002331181567 | T186: 5.546457146e-05 | U186: 0.01700927816
A187: 2004 | B187: 1 | C187: 8 | D187: 17 | E187: 0.006680380099 | F187: 0.009199115458 | G187: 6.58119995e-05 | H187: 0.002930294303 | I187: 2.256451613e-06 | J187: 0.003384132608 | K187: 5.804834354e-05 | L187: 0.02232003926 | N187: 0.00651921898 | O187: 0.00857282919 | P187: 3.199492005e-05 | Q187: 0.002777193601 | R187: 1.619998002e-06 | S187: 0.002182841241 | T187: 5.546457146e-05 | U187: 0.01790123669
A188: 2004 | B188: 1 | C188: 8 | D188: 18 | E188: 0.008049091233 | F188: 0.009352220181 | G188: 0.000263247998 | H188: 0.003384814352 | I188: 9.025806452e-06 | J188: 0.003447137152 | K188: 5.804834354e-05 | L188: 0.02456358507 | N188: 0.007854910582 | O188: 0.008715510369 | P188: 0.0001279796802 | Q188: 0.00320796609 | R188: 6.479992006e-06 | S188: 0.002223480582 | T188: 5.546457146e-05 | U188: 0.01990636672
A189: 2004 | B189: 1 | C189: 8 | D189: 19 | E189: 0.008574944 | F189: 0.009373117297 | G189: 0.000263247998 | H189: 0.003266627758 | I189: 9.025806452e-06 | J189: 0.003393593216 | K189: 5.804834354e-05 | L189: 0.02493860442 | N189: 0.008368077391 | O189: 0.008734984785 | P189: 0.0001279796802 | Q189: 0.003095954456 | R189: 6.479992006e-06 | S189: 0.002188943545 | T189: 5.546457146e-05 | U189: 0.02032699631
A190: 2004 | B190: 1 | C190: 8 | D190: 20 | E190: 0.008514631069 | F190: 0.008894477903 | G190: 0.000263247998 | H190: 0.002981489343 | I190: 9.025806452e-06 | J190: 0.003400839808 | K190: 5.804834354e-05 | L190: 0.02412176027 | N190: 0.008309219482 | O190: 0.008288931707 | P190: 0.0001279796802 | Q190: 0.002825713826 | R190: 6.479992006e-06 | S190: 0.002193617759 | T190: 5.546457146e-05 | U190: 0.01955184469
A191: 2004 | B191: 1 | C191: 8 | D191: 21 | E191: 0.008329247684 | F191: 0.008587008142 | G191: 0.000263247998 | H191: 0.002938233695 | I191: 9.025806452e-06 | J191: 0.003375174976 | K191: 5.804834354e-05 | L191: 0.02355998665 | N191: 0.008128308386 | O191: 0.008002394838 | P191: 0.0001279796802 | Q191: 0.002784718179 | R191: 6.479992006e-06 | S191: 0.002177063368 | T191: 5.546457146e-05 | U191: 0.01904340108
A192: 2004 | B192: 1 | C192: 8 | D192: 22 | E192: 0.007618897352 | F192: 0.00863278947 | G192: 0.000263247998 | H192: 0.002860347071 | I192: 9.025806452e-06 | J192: 0.003462737344 | K192: 5.804834354e-05 | L192: 0.02290509339 | N192: 0.007435094932 | O192: 0.008045059321 | P192: 0.0001279796802 | Q192: 0.00271090094 | R192: 6.479992006e-06 | S192: 0.002233543055 | T192: 5.546457146e-05 | U192: 0.01831903487
A193: 2004 | B193: 1 | C193: 8 | D193: 23 | E193: 0.006824813769 | F193: 0.007948751454 | G193: 0.000263247998 | H193: 0.002213676374 | I193: 9.025806452e-06 | J193: 0.003661815872 | K193: 5.804834354e-05 | L193: 0.02097937962 | N193: 0.006660168253 | O193: 0.007407591393 | P193: 0.0001279796802 | Q193: 0.002098017204 | R193: 6.479992006e-06 | S193: 0.002361953159 | T193: 5.546457146e-05 | U193: 0.01629375653
A194: 2004 | B194: 1 | C194: 8 | D194: 24 | E194: 0.005313567034 | F194: 0.007414606101 | G194: 0.000263247998 | H194: 0.002338775916 | I194: 9.025806452e-06 | J194: 0.00358250656 | K194: 5.804834354e-05 | L194: 0.01897977776 | N194: 0.005185379655 | O194: 0.006909811265 | P194: 0.0001279796802 | Q194: 0.002216580601 | R194: 6.479992006e-06 | S194: 0.002310796878 | T194: 5.546457146e-05 | U194: 0.0144397512
A195: 2004 | B195: 1 | C195: 9 | D195: 1 | E195: 0.004733237734 | F195: 0.007163910025 | G195: 0.000263247998 | H195: 0.002574228318 | I195: 9.025806452e-06 | J195: 0.003094069632 | K195: 5.804834354e-05 | L195: 0.01789576786 | N195: 0.004619050535 | O195: 0.006676182863 | P195: 0.0001279796802 | Q195: 0.002439731191 | R195: 6.479992006e-06 | S195: 0.001995744133 | T195: 5.546457146e-05 | U195: =SUM(N195:Q195) -> 0.01386294427
A196: 2004 | B196: 1 | C196: 9 | D196: 2 | E196: 0.004416782783 | F196: 0.006624323289 | G196: 0.000263247998 | H196: 0.002546107033 | I196: 9.025806452e-06 | J196: 0.003754913792 | K196: 5.804834354e-05 | L196: 0.01767244904 | N196: =E196*X$5 -> 0.004310229915 | O196: =F196*Y$5 -> 0.006173331807 | P196: =G196*Z$5 -> 0.0001279796802 | Q196: =H196*AA$5 -> 0.002413079174 | R196: =I196*AB$5 -> 6.479992006e-06 | S196: =J196*AC$5 -> 0.0024220034 | T196: =K196*AD$5 -> 5.546457146e-05 | U196: 0.01302462058
A197: 2004 | B197: 1 | C197: 9 | D197: 3 | E197: 0.004400282518 | F197: 0.006171502618 | G197: 0.000263247998 | H197: 0.002636178351 | I197: 9.025806452e-06 | J197: 0.003726430912 | K197: 5.804834354e-05 | L197: 0.01726471655 | N197: 0.004294127711 | O197: 0.005751339684 | P197: 0.0001279796802 | Q197: 0.002498444487 | R197: 6.479992006e-06 | S197: 0.002403631305 | T197: 5.546457146e-05 | U197: 0.01267189156
A198: 2004 | B198: 1 | C198: 9 | D198: 4 | E198: 0.004430707738 | F198: 0.006025411938 | G198: 0.000263247998 | H198: 0.002412504744 | I198: 9.025806452e-06 | J198: 0.003848514944 | K198: 5.804834354e-05 | L198: 0.01704746151 | N198: 0.004323818937 | O198: 0.005615195024 | P198: 0.0001279796802 | Q198: 0.002286457278 | R198: 6.479992006e-06 | S198: 0.002482378237 | T198: 5.546457146e-05 | U198: 0.01235345092
A199: 2004 | B199: 1 | C199: 9 | D199: 5 | E199: 0.004524444937 | F199: 0.00611855796 | G199: 0.000263247998 | H199: 0.002418874578 | I199: 9.025806452e-06 | J199: 0.003405670784 | K199: 5.804834354e-05 | L199: 0.01679787041 | N199: 0.004415294768 | O199: 0.005701999559 | P199: 0.0001279796802 | Q199: 0.002292494304 | R199: 6.479992006e-06 | S199: 0.002196733847 | T199: 5.546457146e-05 | U199: 0.01253776831
A200: 2004 | B200: 1 | C200: 9 | D200: 6 | E200: 0.004805785932 | F200: 0.006469394224 | G200: 0.000263247998 | H200: 0.002537104179 | I200: 9.025806452e-06 | J200: 0.0039406064 | K200: 5.804834354e-05 | L200: 0.01808321288 | N200: 0.004689848541 | O200: 0.006028950489 | P200: 0.0001279796802 | Q200: 0.002404546698 | R200: 6.479992006e-06 | S200: 0.002541779287 | T200: 5.546457146e-05 | U200: 0.01325132541
... 4292 more rows

Sheet 2006 Input to CA model
A2: Feed into OEB Cost Allocation Model (version 50) sheet "I6 Customer Data", row 27
D3: 1 | E3: 2 | F3: 3 | G3: 4 | H3: 5 | I3: 6 | J3: 7 | K3: 8 | L3: 9 | M3: 10 | N3: 11 | O3: 12 | P3: 13 | Q3: 14 | R3: 15 | S3: 16 | T3: 17 | U3: 18 | V3: 19 | W3: 20
B4: ID | C4: Total | D4: Residential | E4: GS>50kW | F4: Street Lighting | G4: GS<50 | H4: Sentinel Lighting | I4: Intermediate | J4: USL
A6: kWh - 30 year weather normalized amount | C6: =SUM(D6:J6) -> 159039771.5 | D6: 45951842.7 | E6: 64128836.09 | F6: 1172414.561 | G6: 22073179.91 | H6: 54335 | I6: 25073677.35 | J6: 585485.8832 | K6: 0 | L6: 0 | M6: 0 | N6: 0
A9: Feed into OEB Cost Allocation Model sheet (version 50) "I8 Demand Data", row 40, 45, 50, 55, 61 and 67
D10: 1 | E10: 2 | F10: 3 | G10: 4 | H10: 5 | I10: 6 | J10: 7 | K10: 8 | L10: 9 | M10: 10 | N10: 11 | O10: 12 | P10: 13 | Q10: 14 | R10: 15 | S10: 16 | T10: 17 | U10: 18 | V10: 19 | W10: 20
A11: Customer Classes | C11: Total | D11: Residential | E11: GS>50kW | F11: Street Lighting | G11: GS<50 | H11: Sentinel Lighting | I11: Intermediate | J11: USL
A13: CO-INCIDENT PEAK (kW)
A15: 1 CP
A16: Total Sytem CP | B16: DCP1 | C16: =SUM(D16:J16) -> 26295.38785 | D16: 9644.220353 | E16: 9161.111096 | F16: 263.247998 | G16: 3801.870509 | H16: 9.025806452 | I16: 3357.863744 | J16: 58.04834354
A18: 4 CP
A19: Total Sytem CP | B19: DCP4 | C19: =SUM(D19:J19) -> 103377.9865 | D19: 35482.95988 | E19: 38097.61151 | F19: 792.574674 | G19: 14976.28372 | H19: 27.00177976 | I19: 13738.92998 | J19: 262.6249755
A21: 12 CP
A22: Total Sytem CP | B22: DCP12 | C22: =SUM(D22:J22) -> 287804.1517 | D22: 95661.91293 | E22: 112368.04 | F22: 1670.919214 | G22: 38542.24936 | H22: 76.22858066 | I22: 38685.0336 | J22: 799.7679649
A24: NON CO_INCIDENT PEAK (kW)
A26: 1 NCP
A27: Classification NCP from Load Data Provider | B27: DNCP1 | C27: =SUM(D27:J27) -> 30714.00659 | D27: 10252.37778 | E27: 10831.75349 | F27: 272.5850484 | G27: 5126.853841 | H27: 21.07612903 | I27: 4126.600896 | J27: 82.75940832
A29: 4 NCP
A30: Classification NCP from Load Data Provider | B30: DNCP4 | C30: =SUM(D30:J30) -> 118816.2138 | D30: 38962.52515 | E30: 42921.52085 | F30: 1088.2392 | G30: 19120.7442 | H30: 67.576009 | I30: 16352.31379 | J30: 303.2945899
A32: 12 NCP
A33: Classification NCP from Load Data Provider | B33: DNCP12 | C33: =SUM(D33:J33) -> 329371.6802 | D33: 104553.7996 | E33: 123340.5484 | F33: 3232.137522 | G33: 50450.7086 | H33: 154.1118365 | I33: 46840.60634 | J33: 799.7679649

Sheet Revised Inputs to CA model
A2: Feed into OEB Cost Allocation Model (version 50) sheet "I6 Customer Data", row 27
B4: ID | C4: Total | D4: 1 | E4: 2 | F4: 3 | G4: 4 | H4: 5 | I4: 6 | J4: 7
D5: Residential | E5: GS>50kW | F5: Street Lighting | G5: GS<50 | H5: Sentinel Lighting | I5: Intermediate | J5: USL
A6: kWh - 30 year weather normalized amount
A9: Feed into OEB Cost Allocation Model sheet (version 50) "I8 Demand Data", row 40, 45, 50, 55, 61 and 67 | L9: 2018 Demand Data
A11: Customer Classes | C11: Total | D11: ='Hourly load shapes by class'!E2 -> Residential | E11: ='Hourly load shapes by class'!F2 -> GS>50 2999 | F11: ='Hourly load shapes by class'!G2 -> Street Lighting | G11: ='Hourly load shapes by class'!H2 -> GS<50kW | H11: ='Hourly load shapes by class'!I2 -> Sentinel Lighting | I11: ='Hourly load shapes by class'!J2 -> GS 3000 4999 | J11: ='Hourly load shapes by class'!K2 -> USL | K11: Total | L11: =D11 -> Residential | M11: =E11 -> GS>50 2999 | N11: Street Lighting | O11: GS<50kW | P11: Sentinel Lighting | Q11: GS 3000 4999 | R11: USL
A13: CO-INCIDENT PEAK (kW)
A15: 1 CP
A16: Total Sytem CP | B16: DCP1 | C16: =SUM(D16:J16) -> 26295.38785 | D16: ='2006 Input to CA model'!D16 -> 9644.220353 | E16: ='2006 Input to CA model'!E16 -> 9161.111096 | F16: ='2006 Input to CA model'!F16 -> 263.247998 | G16: ='2006 Input to CA model'!G16 -> 3801.870509 | H16: ='2006 Input to CA model'!H16 -> 9.025806452 | I16: ='2006 Input to CA model'!I16 -> 3357.863744 | J16: ='2006 Input to CA model'!J16 -> 58.04834354 | K16: =SUM(L16:R16) -> 22885.02527 | L16: ='Hourly load shapes by class'!N8815*1000000 -> 9527.142061 | M16: ='Hourly load shapes by class'!O8815*1000000 -> 8154.374264 | N16: ='Hourly load shapes by class'!P8815*1000000 -> 132.5189464 | O16: ='Hourly load shapes by class'!Q8815*1000000 -> 4226.902802 | P16: ='Hourly load shapes by class'!R8815*1000000 -> 15.13140664 | Q16: ='Hourly load shapes by class'!S8815*1000000 -> 749.880057 | R16: ='Hourly load shapes by class'!T8815*1000000 -> 79.07572959
A18: 4 CP
A19: Total Sytem CP | B19: DCP4 | C19: =SUM(D19:J19) -> 103377.9865 | D19: ='2006 Input to CA model'!D19 -> 35482.95988 | E19: ='2006 Input to CA model'!E19 -> 38097.61151 | F19: ='2006 Input to CA model'!F19 -> 792.574674 | G19: ='2006 Input to CA model'!G19 -> 14976.28372 | H19: ='2006 Input to CA model'!H19 -> 27.00177976 | I19: ='2006 Input to CA model'!I19 -> 13738.92998 | J19: ='2006 Input to CA model'!J19 -> 262.6249755 | K19: =SUM(L19:R19) -> 93933.62598 | L19: =SUM('Hourly load shapes by class'!N8815:N8818)*1000000 -> 35681.63784 | M19: =SUM('Hourly load shapes by class'!O8815:O8818)*1000000 -> 35228.28436 | N19: =SUM('Hourly load shapes by class'!P8815:P8818)*1000000 -> 388.4783068 | O19: =SUM('Hourly load shapes by class'!Q8815:Q8818)*1000000 -> 14965.82612 | P19: =SUM('Hourly load shapes by class'!R8815:R8818)*1000000 -> 28.04480571 | Q19: =SUM('Hourly load shapes by class'!S8815:S8818)*1000000 -> 7377.345438 | R19: =SUM('Hourly load shapes by class'!T8815:T8818)*1000000 -> 264.0091216
A21: 12 CP
A22: Total Sytem CP | B22: DCP12 | C22: =SUM(D22:J22) -> 287804.1517 | D22: ='2006 Input to CA model'!D22 -> 95661.91293 | E22: ='2006 Input to CA model'!E22 -> 112368.04 | F22: ='2006 Input to CA model'!F22 -> 1670.919214 | G22: ='2006 Input to CA model'!G22 -> 38542.24936 | H22: ='2006 Input to CA model'!H22 -> 76.22858066 | I22: ='2006 Input to CA model'!I22 -> 38685.0336 | J22: ='2006 Input to CA model'!J22 -> 799.7679649 | K22: =SUM(L22:R22) -> 261446.532 | L22: =SUM('Hourly load shapes by class'!N8802:N8813)*1000000 -> 94314.04068 | M22: =SUM('Hourly load shapes by class'!O8802:O8813)*1000000 -> 104903.1432 | N22: =SUM('Hourly load shapes by class'!P8802:P8813)*1000000 -> 812.3279505 | O22: =SUM('Hourly load shapes by class'!Q8802:Q8813)*1000000 -> 40919.38019 | P22: =SUM('Hourly load shapes by class'!R8802:R8813)*1000000 -> 54.72758539 | Q22: =SUM('Hourly load shapes by class'!S8802:S8813)*1000000 -> 19678.74266 | R22: =SUM('Hourly load shapes by class'!T8802:T8813)*1000000 -> 764.1697374
A24: NON CO_INCIDENT PEAK (kW)
A26: 1 NCP
A27: Classification NCP from Load Data Provider | B27: DNCP1 | C27: =SUM(D27:J27) -> 30714.00659 | D27: ='2006 Input to CA model'!D27 -> 10252.37778 | E27: ='2006 Input to CA model'!E27 -> 10831.75349 | F27: ='2006 Input to CA model'!F27 -> 272.5850484 | G27: ='2006 Input to CA model'!G27 -> 5126.853841 | H27: ='2006 Input to CA model'!H27 -> 21.07612903 | I27: ='2006 Input to CA model'!I27 -> 4126.600896 | J27: ='2006 Input to CA model'!J27 -> 82.75940832 | K27: =SUM(L27:R27) -> 26043.02237 | L27: 9265.968738 | M27: 9265.800135 | N27: 128.3438217 | O27: 4447.389456 | P27: 14.65467852 | Q27: 2844.281161 | R27: 76.58437998
A29: 4 NCP
A30: Classification NCP from Load Data Provider | B30: DNCP4 | C30: =SUM(D30:J30) -> 118816.2138 | D30: ='2006 Input to CA model'!D30 -> 38962.52515 | E30: ='2006 Input to CA model'!E30 -> 42921.52085 | F30: ='2006 Input to CA model'!F30 -> 1088.2392 | G30: ='2006 Input to CA model'!G30 -> 19120.7442 | H30: ='2006 Input to CA model'!H30 -> 67.576009 | I30: ='2006 Input to CA model'!I30 -> 16352.31379 | J30: ='2006 Input to CA model'!J30 -> 303.2945899 | K30: =SUM(L30:R30) -> 107558.6518 | L30: =(LARGE('Hourly load shapes by class'!N8788:N8799,1)+LARGE('Hourly load shapes by class'!N8788:N8799,2)+LARGE('Hourly load shapes by class'!N8788:N8799,3)+LARGE('Hourly load shapes by class'!N8788:N8799,4))*1000000 -> 38022.57202 | M30: =(LARGE('Hourly load shapes by class'!O8788:O8799,1)+LARGE('Hourly load shapes by class'!O8788:O8799,2)+LARGE('Hourly load shapes by class'!O8788:O8799,3)+LARGE('Hourly load shapes by class'!O8788:O8799,4))*1000000 -> 39999.37477 | N30: =(LARGE('Hourly load shapes by class'!P8788:P8799,1)+LARGE('Hourly load shapes by class'!P8788:P8799,2)+LARGE('Hourly load shapes by class'!P8788:P8799,3)+LARGE('Hourly load shapes by class'!P8788:P8799,4))*1000000 -> 529.0543741 | O30: =(LARGE('Hourly load shapes by class'!Q8788:Q8799,1)+LARGE('Hourly load shapes by class'!Q8788:Q8799,2)+LARGE('Hourly load shapes by class'!Q8788:Q8799,3)+LARGE('Hourly load shapes by class'!Q8788:Q8799,4))*1000000 -> 18121.73213 | P30: =(LARGE('Hourly load shapes by class'!R8788:R8799,1)+LARGE('Hourly load shapes by class'!R8788:R8799,2)+LARGE('Hourly load shapes by class'!R8788:R8799,3)+LARGE('Hourly load shapes by class'!R8788:R8799,4))*1000000 -> 48.51555376 | Q30: =(LARGE('Hourly load shapes by class'!S8788:S8799,1)+LARGE('Hourly load shapes by class'!S8788:S8799,2)+LARGE('Hourly load shapes by class'!S8788:S8799,3)+LARGE('Hourly load shapes by class'!S8788:S8799,4))*1000000 -> 10547.60823 | R30: =(LARGE('Hourly load shapes by class'!T8788:T8799,1)+LARGE('Hourly load shapes by class'!T8788:T8799,2)+LARGE('Hourly load shapes by class'!T8788:T8799,3)+LARGE('Hourly load shapes by class'!T8788:T8799,4))*1000000 -> 289.7947371
A32: 12 NCP
A33: Classification NCP from Load Data Provider | B33: DNCP12 | C33: =SUM(D33:J33) -> 329371.6802 | D33: ='2006 Input to CA model'!D33 -> 104553.7996 | E33: ='2006 Input to CA model'!E33 -> 123340.5484 | F33: ='2006 Input to CA model'!F33 -> 3232.137522 | G33: ='2006 Input to CA model'!G33 -> 50450.7086 | H33: ='2006 Input to CA model'!H33 -> 154.1118365 | I33: ='2006 Input to CA model'!I33 -> 46840.60634 | J33: ='2006 Input to CA model'!J33 -> 799.7679649 | K33: =SUM(L33:R33) -> 297449.0287 | L33: =SUM('Hourly load shapes by class'!N8788:N8799)*1000000 -> 102031.4869 | M33: =SUM('Hourly load shapes by class'!O8788:O8799)*1000000 -> 114943.3832 | N33: =SUM('Hourly load shapes by class'!P8788:P8799)*1000000 -> 1571.324111 | O33: =SUM('Hourly load shapes by class'!Q8788:Q8799)*1000000 -> 47814.7826 | P33: =SUM('Hourly load shapes by class'!R8788:R8799)*1000000 -> 110.6431291 | Q33: =SUM('Hourly load shapes by class'!S8788:S8799)*1000000 -> 30213.239 | R33: =SUM('Hourly load shapes by class'!T8788:T8799)*1000000 -> 764.1697374
